{"text_format":"1","workbook":"xlsx","n_sheets":5,"sheets":["大会要項","参加資格","シングルスランキング","ダブルスランキング","名簿"],"not_rendered":{"charts":0,"images":2,"macros":1,"external_links":0,"defined_names":6,"comments":0,"pivot_tables":0},"unopened":[],"bounds":{"document_bytes":16777216,"sheet_cells":100000,"rows_first":2000,"rows_last":500,"rows_between":2000,"halvings":0,"cell_chars":16384,"cell_head_chars":4096},"cells_cut":0,"cells_raw":0,"read":"whole","date_system":"1900"}

{"sheet":"大会要項","index":0,"n_rows":49,"n_cols":4,"rows_kept":49,"cut":false,"hidden":false,"merged":[[47,2,47,3],[48,2,48,3],[20,2,22,2],[43,2,43,3],[42,2,42,3],[44,2,44,3],[45,2,45,3],[46,2,46,3],[37,2,37,3],[38,2,38,3],[39,2,39,3],[40,2,40,3],[41,2,41,3],[32,2,32,3],[33,2,33,3],[34,2,34,3],[35,2,35,3],[36,2,36,3],[27,2,27,3],[28,2,28,3],[29,2,29,3],[30,2,30,3],[31,2,31,3],[14,2,14,3],[15,2,15,3],[4,2,4,3],[1,1,1,3],[6,2,6,3],[7,2,7,3],[8,2,8,3],[12,2,12,3],[13,2,13,3],[13,1,15,1],[16,1,26,1],[38,1,40,1],[41,1,47,1],[8,1,11,1],[27,1,37,1]]}
[]
[null,"2019年度 鹿沼冬季チャレンジテニス大会募集要項"]
[]
[null,"主　催  ：","　鹿沼テニス協会"]
[null,"種　別","鹿沼冬季チャレンジテニス大会"]
[]
[null," 1.期日･種目","1月12日(日）：男女シングルス       1月19日(日）：男女ダブルス\n\n1月26日(日）：予備日 、2月2日(日）：予備日"]
[null," 2.会　場","キョクトウベリースタジアム（鹿沼運動公園：鹿沼市旭が丘）"]
[null," 3.参加資格","(1) ランキングポイントによる参加制限がありますので、参加資格の詳細は、「参加資格」シートをご確認ください。\n(2) なお、各選手の保有ポイントは、下記の水色の「選手の氏名」の入力欄に入力する（姓と名の間に半角スペースを入力（◇◇が姓、○○が名）／【入力例】森田 博章）か、もしくは氏名をリストから選択すると、緑色の欄で確認できます。"]
[null,null,"「選手の氏名」の入力欄","◇◇ ○○"]
[null,null,"シングルス保有ポイント\n（表示のみ）",{"$f":"IFERROR(VLOOKUP(D10,Singles,14,0),\"この選手はシングルスに出場できます。\")","v":"この選手はシングルスに出場できます。"}]
[null,null,"ダブルス保有ポイント\n（表示のみ）",{"$f":"IFERROR(VLOOKUP(D10,Doubles,14,0),\"この選手はダブルスに出場できます。\")","v":"この選手はダブルスに出場できます。"}]
[null," 4.試合方法","(1) トーナメント方式６～８ゲームマッチ  または、予選３～５名を１ブロックにした予選リーグ戦後、決勝トーナメント方式\n　　（参加人数により若干の変更あり）、予選、決勝に分かれる場合があります。\n(2) 試合球 ： ブリヂストンXT-8\n\n※試合方法、コンソレの有無等について、参加申し込み締め切り後に実施要項にて周知しますので、各自ご確認をお願いいたします。"]
[null," 5.参加料","(1) 2019年度の鹿沼テニス協会登録者：１名（または１ペア）＝２，０００円"]
[null,null,"(2) 鹿沼テニス協会に登録しない方：１名（または未登録者の含まれる１ペア）＝３，０００円"]
[null,null,"(3) 高校生以下： １名（または１ペア）＝ １，０００円"]
[null," 6.申込方法","(1) 申込締切","2019年12月10日(火）"]
[null,null,"(2) 申込方法","下記の入力フォームから、必要事項を入力してお申込みください。\n                  "]
[null,null,null,"https://www.k-tc.org/entry/2019winter/"]
[null,null,null,"(注)この入力フォームで申込みを送信する前に、参加料金の振込みを完了してください。参加料が振り\n      込まれていない場合、入力フォームから申込みしても、申込みは受理されません。"]
[null,null,"(3) 参加料金の振込み方法","参加料は、銀行振込みでお願いします。（申込完了までに振込みください。）"]
[null,null,null,"＜振込先＞足利銀行 0163鹿沼東支店 普通口座 ２８５３１３４ 名義人森田博章"]
[null,null,null,"　　　　　※今年から振込先口座を変更していますので，間違わないようご注意ください。"]
[null,null,"(4) 上記(2)の方法で","上記(2)の入力フォームから申込みできない場合に限り、例外的に、所定の様式で申込みしてください。"]
[null,null,"　　申込みできない場合","原則としてＥメール（やむを得ない場合は、申込様式に記載して郵送）で送付してください。"]
[null,null,"　（例外的な申込方法）","＜申込先＞    Ｅメール：kyogi-unei@k-tc.org"]
[null,null,null,"                   （郵送：鹿沼テニス協会　森田博章　宛　〒３２０-０８３５ 　宇都宮市宮原1-2-31）"]
[null," 7.追加エントリーについて","＊大会当日に追加エントリーできる制度について（資格制限なくオープン）"]
[null,null,"　　＜大会当日の追加エントリー制度の詳細＞"]
[null,null,"　　＊大会当日に出場辞退者がいる種目において、出場エントリーしていなかった選手が、大会会場の受付"]
[null,null,"　　　において、受付終了時刻までに追加エントリーの申込みをした場合は、出場辞退者が登録されていた"]
[null,null,"　 　 ドローの箇所に、代わりに出場することができます。"]
[null,null,"（注１）出場辞退者の代わりに出場する場合は、大会当日、大会受付で参加料を支払ってください。"]
[null,null,"（注２）辞退者等の人数よりも、追加エントリー希望者の人数が多い場合は、抽選にて決定します。"]
[null,null,"（注３）ダブルスのＡさんとＢさんが組んで申し込んだペアのうち、Ａさんが辞退者等となる場合、このペアその\nものが辞退者等と なります。ＢさんはＣさんと組んで、追加エントリーすることができますが、（注2 ）が適用されます。"]
[null,null,"（注４）追加エントリーで出場が決定した者（ペア）は、大会当日に、大会受付で参加料をお支払いください。"]
[null,null,"　なお、（注３）の例の場合、Ｂさんは参加料は不要とし、Ｃさんは「Ｂさん・Ｃさんペアに該当する参加料」から「Ａさん・Bさんペアの支払い済み参加料の半額」との不足分をお支払いください。例えば、参加料2000円の登録者ペアＡさんＢさんが辞退し、登録者Ａさんと非登録者Ｃさんペアが追加エントリーすると、参加料は3000円となるため、ペアとして不足分2000円（＝（ペアの参加料3000円）－（Ａさんの支払い済みとみなす参加料1000円））をお支払いください。"]
[null,null,"（注5）　鹿沼テニス協会のランキングポイント保有者も、上記の追加エントリーを可能とします。よって、ランキングポイント保有者であっても、１回戦から出場する場合があります。"]
[null," 8.組合せ会議","(1) 日時:　2020年12月21日(土)14：00～16：00"]
[null,null,"(2) 会場：鹿沼市民情報センター"]
[null,null,"(3) 担当クラブ：　D-Staff  デクセリアルズ"]
[null,"8.備考","(1) 男子シングルスはランキング上位８名がシードとなる予定です。なお、申込み状況によって若干の変更"]
[null,null,"　　がある場合もありますのでご了承ください。"]
[null,null,"(2) 各種目の申込者数が３名（ペア）以下の場合は、実施を見合わせる場合もあります。"]
[null,null,"(3) 大会当日、受付時間までにエントリーがない場合は、棄権となりますのでご注意ください。"]
[null,null,"(4) セットボールの販売について"]
[null,null,"　＊試合当日、セットボールの販売をいたしますので、希望者は大会申込み時に希望缶数を申し込んでください。"]
[null,null,"　＊１缶（２個入り）＠１００円（予約有りの場合）、＠125円（予約なしの場合）"]
[null,"９.問合せ先","　鹿沼テニス協会　℡090-9235-6851  競技運営担当 森田"]

{"sheet":"参加資格","index":1,"n_rows":24,"n_cols":2,"rows_kept":24,"cut":false,"hidden":false,"merged":[[8,0,8,1],[2,0,2,1],[13,0,13,1],[19,0,19,1],[20,0,20,1],[21,0,21,1],[22,0,22,1],[23,0,23,1],[14,0,14,1],[15,0,15,1],[16,0,16,1],[17,0,17,1],[18,0,18,1],[1,0,1,1],[3,0,3,1],[4,0,4,1],[5,0,5,1],[6,0,7,1]]}
[]
["参加資格"]
[]
["　男女種目とも年齢制限無くオープンとしますが、次のａ)～ｃ)のいずれかに該当する者は出場できません。\n　※女子ダブルスでペアが組めない場合は、男性と組んで、男子ダブルスへ出場が可能です。"]
["ａ)この募集要項がホームページに掲載された時点で、このエクセルの「シングルスランキング」\n　「ダブルスランキング」シート（鹿沼テニス協会ランキング表または栃木県テニス協会ランキ\n　 ング表（一般））において、下記のランキングポイントを保有している者は、ポイントを保有\n　 している種目には出場できません。"]
["   1)男女シングルス：\tいずれかの１大会に於けるシングルスポイントが２以上ある者"]
["   2)男女ダブルス：「ペアの各々がいずれかの１大会で獲得したダブルスポイントの最大値」のペア合計が４以上のペア\n\n       注１）「ペアの合計＝Ａさんのポイント＋Ｂさんのポイント」が次の場合は出場可：\n                    ３＝３＋０，３＝２＋１，２＝２＋０，２＝１＋１，１＝１＋０,     ０＝０＋０\n       注２）「ペアの合計＝Ａさんのポイント＋Ｂさんのポイント」が次の場合は出場不可：4＝3＋1、4＝4＋0"]
[]
["＜ 栃木県ランキングポイントリンク先 ＞"]
["栃木県男子S","http://www.tochigi-tennis.com/ranking/men_s/ranking_men_s.pdf"]
["栃木県女子S","http://www.tochigi-tennis.com/ranking/woman_s/ranking_woman_s.pdf"]
["栃木県男子W","http://www.tochigi-tennis.com/ranking/men_w/ranking_men_w.pdf"]
["栃木県女子W","http://www.tochigi-tennis.com/ranking/woman_w/ranking_woman_w.pdf"]
[]
["ｂ)直近１年間の鹿沼夏季・冬季チャレンジ大会において下記の成績を修めた者は、同じ種目には出場でき\n　 ません。"]
["    1)男子シングルス：\t準優勝以上\n          H30冬季シングルス\n               大河原秀之（デクセリアルズ） 遠藤 勝也（チームU&T）"]
["          R01夏季シングルス\n               長谷川翔太（必笑会）長岡　大介（鹿沼市役所）"]
["    2)女子シングルス：準優勝以上\n          H30冬季シングルス\n                依⽥ 由美⼦(ウィングTC)  ,⼩岩 美加(ミレニアム)"]
["           R01夏季シングルス\n                未開催"]
["    3)男子ダブルス：準優勝者以上の入賞者同士のペア\n          H30冬季ダブルス\n                髙村 英俊・薄井 啓輔( Hinata ・BEST)\n                横井 英人・楊 嘉胤(TAテニス・TAテニス)"]
["         R01夏季ダブルス\n                阿部 隼也・宇賀神 槙吾( VECTOR ・フリー)\n                池田 研二・半田 守可( キャノン・RIZU )"]
["   4)女子ダブルス：準優勝者以上の入賞者同士のペア\n          H30冬季ダブルス\n             　平野 有芽・丸山 和華（フリー・フリー）\n                加藤 厚子・松本 幸恵（フリー・フリー）"]
["          R01夏季ダブルス\n                篠崎 稚⼦・⾼橋 美喜⼦( フリー・フリー)\n                荒⽊ 裕⼦・⼤柿 忍( フレンド・フレンド)"]
["ｃ)過去に鹿沼夏季・冬季チャレンジ大会において2度優勝の成績を修めた者は、同じ種目には出場できません。"]

{"sheet":"シングルスランキング","index":2,"n_rows":369,"n_cols":16,"rows_kept":369,"cut":false,"hidden":false,"merged":[[1,15,2,15],[1,1,2,1],[1,0,2,0],[1,2,2,2],[1,3,1,4]]}
["Singles Ranking",null,null,null,null,null,null,null,null,null,null,null,null,null,null,"Update ; 2019-10-06"]
["順位","TTA登録番号","選手名","所属",null,"春季","全日本","宇都宮","秋季","小山","両毛","選抜","JOP","鹿沼","鹿沼","合計"]
[null,null,null,"クラブ","協会",2019,2019,2019,2019,2018,2019,2018,"2019-07","秋季","春季"]
[200,"TM0677","ソンバット スリヤチャン","みくりやTC","足利",null,null,null,null,null,2,null,null,null,null,{"$f":"SUM(F4:O4)","v":2}]
[127,"TM4229","阿久津 光範","帝京大学","宇都宮",null,null,8,null,null,null,null,null,null,null,8]
[null,null,"阿久津 精一","UIテニスクラブ","鹿沼",null,null,null,null,null,null,null,null,1,null,1]
[28,"TM2853","阿久津 裕汰","サトウGTC","宇都宮",null,45,null,null,null,null,15,null,16,null,76]
[34,"TM8894","阿部 喜亮","巌翠テニスクラブ","小山市",12,19,null,3,10,null,5,null,null,null,49]
[97,"TM3734","阿部 隼也","VECTOR","宇都宮",0,0,0,2,1,12,0,null,4,4,23]
[62,"TF3472","阿部 文子","ビッグツリー","宇都宮",null,null,2,null,null,null,null,null,null,null,2]
[4,"TF6918","阿部 祐理子","P.J.D","真岡",85,40,null,55,55,null,25,null,null,null,260]
[228,"TM5405","綾目 徹也","レモンティー","小山市",null,null,null,null,1,null,null,null,null,null,1]
[186,"TM7126","粟野 裕都","帝京大学","宇都宮",1,null,2,null,null,null,null,null,null,null,3]
[26,"TF8041","伊東 里英","プリティスプリームス","小山市",30,null,null,null,null,null,null,null,null,null,30]
[214,"TM6149","伊藤 晃洋","泉テニスクラブ（ITC)","矢板市",null,null,0,2,null,null,null,null,null,null,2]
[null,null,"依田 克則","ウイングTC","鹿沼",null,null,null,null,null,null,null,null,null,1,1]
[null,null,"依田 由美子","フレンドテニスクラブ","鹿沼",null,null,null,null,null,null,null,null,null,2,2]
[null,null,"依田 和也","鹿沼西中",null,null,null,null,null,null,null,null,null,null,1,1]
[186,"TM8408","井上 勇","サトウGTC","宇都宮",null,2,null,1,null,null,null,null,null,null,3]
[200,"TM7681","井田 義明","キヤノン","宇都宮",null,null,2,null,null,null,null,null,null,null,2]
[134,"TM1593","稲見 正雄","※未登録","※未登録",0,null,null,null,1,2,5,null,null,null,8]
[113,"TM4463","稲田 諭","コマツ硬式テニス部","小山市",0,4,0,2,null,null,5,null,null,null,11]
[139,"TM2476","鵜養 知秀","サトウGTC","宇都宮",1,null,5,null,1,null,null,null,null,null,7]
[155,"TM4836","鵜澤 広也","ＨＯＮＤＡ Ｔ．Ｃ","宇都宮",null,null,5,null,null,null,null,null,null,null,5]
[225,"TM2187","永沼 俊道","(爆)TC","小山市",0,0,2,0,null,null,null,null,2,null,4]
[3,"TM6082","益田 敬明","Double Nine","宇都宮",60,45,20,30,10,null,70,null,null,null,235]
[186,"TM2315","遠藤 伸尭","宇都宮大学","宇都宮",null,null,2,null,1,null,null,null,null,null,3]
[16,"TF8515","塩澤 美幸","FTS","宇都宮",null,null,null,null,null,null,65,null,null,null,65]
[140,"TM2937","奥山 敬一郎","エンデバーテニスクラブ","小山市",0,1,5,0,1,null,null,null,2,null,9]
[269,"TM8034","奥山 直大","足利ローンテニスクラブ","足利",0,0,null,1,null,null,null,null,null,null,1]
[269,"TM2814","奥村 遊","ＫＡＴＡ","鹿沼",0,0,null,null,1,null,null,null,null,null,1]
[228,"TM2714","岡田 遥平","レモンティー","小山市",null,null,null,null,1,null,null,null,null,null,1]
[165,"TM0312","岡部 昭男","足利ローンテニスクラブ","足利",null,null,null,1,4,null,null,null,null,null,5]
[119,"TM5475","荻原 俊行","大昌電子テニスクラブ","日光市",null,9,null,null,null,null,null,null,null,null,9]
[122,"TM1994","荻谷 健人","※未登録","※未登録",null,null,null,null,4,null,5,null,null,null,9]
[168,"TM8093","加藤 貴哉","鹿沼市役所","鹿沼",4,null,null,null,null,null,null,null,null,null,4]
[119,"TM8605","加藤 広之","キヤノン","宇都宮",null,9,null,null,null,null,null,null,null,null,9]
[228,"TM5408","加藤 成利","(爆)TC","小山市",null,null,null,null,1,null,null,null,null,null,1]
[228,"TM8241","加藤 智之","Ｎｅｘｔ．","宇都宮",null,null,null,null,1,null,null,null,null,null,1]
[200,"TM1114","加藤 望未","宇都宮大学","宇都宮",2,null,null,null,null,null,null,null,null,null,2]
[33,"TM8346","河内 良太","足利ローンテニスクラブ","足利",0,0,null,3,6,12,30,null,null,null,51]
[79,"TM6238","河内 良容","River","足利",null,null,null,null,null,20,null,null,null,null,20]
[146,"TM3704","河野 知紘","フリー","栃木県テニス協会",null,0,5,1,null,null,null,null,null,null,6]
[77,"TM1509","海老原 亮","フィナリスタ","真岡",6,null,0,10,1,null,5,null,null,null,22]
[262,"TM6985","外山 秀樹","エキサイト","小山市",0,null,null,null,1,null,null,null,null,null,1]
[null,null,"外池 勝次","UIテニスクラブ","鹿沼",null,null,null,null,null,null,null,null,null,1,1]
[37,"TM0572","垣内 義則","サトウGTC","宇都宮",8,null,30,7,null,null,null,null,null,null,45]
[162,"TM0144","垣木 智行","HTC","真岡",null,0,5,null,null,null,null,null,null,null,5]
[180,"TM2276","角田 知久","Ｎｅｘｔ．","宇都宮",0,0,2,1,1,null,null,null,null,null,4]
[176,"TM5644","笠原 空也","REDWOOD","小山市",0,null,0,null,4,null,null,null,null,null,4]
[47,"TM5898","笠松 創太","ＳＢＴＣ","宇都宮",2,34,2,null,1,null,null,null,null,null,39]
[55,"TM1622","笠倉 一寿","dream","小山市",8,9,null,10,4,2,0,null,null,null,33]
[54,"TF9874","乾 裕子","FAIR WIND","宇都宮",null,null,null,3,null,null,null,null,null,null,3]
[20,"TM3524","関 宏隆","ローズテニスガーデン","小山市",20,5,2,15,6,8,30,null,null,null,86]
[117,"TM5875","関口 直也","Bloom","宇都宮",2,0,5,2,1,null,null,null,null,null,10]
[186,"TM6380","関口 勇二","BEST","栃木市",null,2,null,null,1,null,null,null,null,null,3]
[143,"TM7012","関根 好克","ローズテニスガーデン","小山市",0,null,null,null,6,null,null,null,null,null,6]
[180,"TM8505","関根 和彦","ビックサーズデイ","栃木市",1,0,0,2,1,null,null,null,null,null,4]
[179,"TM4513","関本 悟","To-Be","宇都宮",1,1,0,2,null,null,null,null,null,null,4]
[81,"TM9798","関野 将司","P.J.D","真岡",null,null,null,19,null,null,null,null,null,null,19]
[121,"TM9384","岩永 卓也","ホンダエンジニアリング","宇都宮",1,null,8,null,null,null,null,null,null,null,9]
[15,"TF1135","岩垂 桃香","FAIR WIND","宇都宮",0,null,15,30,10,12,5,null,null,null,72]
[28,"TF3844","岩田 真彩","※未登録","※未登録",null,null,null,null,null,null,25,null,null,null,25]
[54,"TM6421","亀井 秀造","宇都宮サンテニスクラブ","宇都宮",0,0,20,7,6,null,0,null,null,null,33]
[10,"TM2231","亀井 泰造","アウリンTC","宇都宮",0,70,30,45,6,null,0,null,null,null,151]
[91,"TM4508","亀田 飛翔","River","足利",0,1,8,7,null,null,null,null,null,null,16]
[177,"TM9338","菊地 直行","ｱｲﾎﾞさくら","宇都宮",null,null,2,1,1,null,null,null,null,null,4]
[214,"TM8210","菊地 廉","足利ローンテニスクラブ","足利",0,null,null,null,null,2,null,null,null,null,{"$f":"SUM(F68:O68)","v":2}]
[197,"TM5579","吉岡 洋","SUBARU","宇都宮",0,null,2,0,1,null,null,null,null,null,3]
[75,"TM0040","吉川 史哲","ＨＯＮＤＡ Ｔ．Ｃ","宇都宮",null,null,8,14,null,null,null,null,null,null,22]
[227,"TM5039","吉川 典男","ウィンディ","宇都宮",1,null,0,0,1,null,0,null,null,null,2]
[219,"TM5336","吉田 真志","ウィンディ","宇都宮",1,null,null,null,1,null,null,null,null,null,2]
[2,"TF3760","吉田 麻美","VOX","下野市",null,null,null,null,null,null,175,372,null,null,547]
[125,"TM8640","久保田 文一","足利ローンテニスクラブ","足利",0,1,null,7,1,null,0,null,null,null,9]
[63,"TM5418","久保田 芳久","ウィンディ","宇都宮",8,7,8,5,1,null,null,null,null,null,29]
[34,"TF5039","宮森 智美","TCA","宇都宮",4,0,15,null,6,null,null,null,null,null,25]
[58,"TM4372","宮部 正章","宇都宮サンテニスクラブ","宇都宮",12,0,2,3,1,8,5,null,null,null,31]
[275,"TM3054","宮澤 保志","足利ローンテニスクラブ","足利",0,null,null,0,1,null,0,null,null,null,1]
[93,"TM0735","橋本 樹","VOX","下野市",4,9,0,2,1,null,null,null,null,null,16]
[25,"TF8925","橋本 美樹","Space 135","那須塩原",null,5,null,10,null,null,25,null,null,null,40]
[147,"TM4520","饗庭 洋行","To-Be","宇都宮",0,null,5,null,1,null,0,null,null,null,6]
[226,"TM8413","近藤 友貴","Bloom","宇都宮",1,0,null,0,1,null,null,null,null,null,2]
[24,"TM9297","金井 耀平","ＨＯＮＤＡ Ｔ．Ｃ","宇都宮",12,15,null,10,null,12,15,9,null,null,73]
[40,"TM8302","金山 道生","ＨＯＮＤＡ Ｔ．Ｃ","宇都宮",0,null,null,null,null,null,15,28,null,null,43]
[null,null,"金子 諒","Gon Be",null,null,null,null,null,null,null,null,null,null,1,1]
[14,"TF8189","金敷 美由紀","BEST","栃木市",4,null,null,null,null,80,null,null,null,null,84]
[null,null,"駒場 道久","サトウGTC","宇都宮",null,null,null,null,null,null,null,null,4,1,5]
[200,"TM2012","桑名 一瑠","フリー","栃木県テニス協会",null,null,null,2,null,null,null,null,null,null,2]
[64,"TM2946","桑野 遼馬","VOX","下野市",24,4,null,null,null,null,null,null,null,null,28]
[12,"TF0705","穴山 律子","ラフィエスタ","大田原市",50,null,null,null,null,null,40,null,null,null,90]
[200,"TM3788","原 陽一","※未登録","※未登録",null,null,null,null,null,2,null,null,null,null,2]
[228,"TM7484","古舘 海生","※未登録","※未登録",1,null,null,null,null,null,null,null,null,null,1]
[228,"TM3885","古森 健太","※未登録","※未登録",null,null,null,null,1,null,null,null,null,null,1]
[92,"TM7616","古内 諒","佐野市役所","佐野市",0,0,12,0,4,null,null,null,null,null,16]
[73,"TM2125","戸松 博","ＳＢＴＣ","宇都宮",4,5,0,10,1,null,5,null,null,null,25]
[219,"TM6267","戸田 真弘","アキレス","足利",null,1,null,1,null,null,null,null,null,null,2]
[262,"TM7428","後藤 英美","アキレス","足利",null,1,null,0,null,null,null,null,null,null,1]
[26,"TM9000","後藤 孝文","フィナリスタ","真岡",12,5,20,10,4,2,15,null,1,null,69]
[null,null,"向井原 宏","デクセリアルズ","鹿沼",null,null,null,null,null,null,null,null,2,null,2]
[175,"TM2880","広瀬 慎也","dream","小山市",null,0,null,null,4,null,null,null,null,null,4]
[14,"TM9951","江田 秀樹","サトウGTC","宇都宮",35,45,8,10,6,2,15,null,null,8,129]
[69,"TM2156","江連 雅晴","県庁テニスクラブ","宇都宮",4,5,0,3,null,null,15,null,null,null,27]
[228,"TM0140","荒井 健一","アップルテニスチーム","那須塩原",null,null,null,null,1,null,null,null,null,null,1]
[82,"TM7168","荒井 宏道","ダブルベーグル","小山市",0,19,null,null,null,null,null,null,null,null,19]
[228,"TM4787","荒井 哲也","レモンティー","小山市",null,null,null,null,1,null,null,null,null,null,1]
[262,"TM3417","荒井 龍彦","ｱｲﾎﾞさくら","宇都宮",null,null,null,0,1,null,null,null,null,null,1]
[228,"TM7927","荒木 浩二","自治医科大学教職員テニスクラブ","下野市",null,null,null,1,null,null,null,null,null,null,1]
[null,null,"荒木 裕子","フレンドテニスクラブ","鹿沼",null,null,null,null,null,null,null,null,2,null,2]
[89,"TM9215","行成 大樹","キヤノン","宇都宮",null,9,8,null,null,null,null,null,null,null,17]
[135,"TM5732","高久 典昭","宇都宮サンテニスクラブ","宇都宮",0,0,2,2,4,null,0,null,null,null,8]
[228,"TM8347","高橋 賢都","※未登録","※未登録",null,null,null,null,1,null,null,null,null,null,1]
[47,"TF1604","高橋 香澄","※未登録","※未登録",null,null,null,null,6,null,null,null,null,null,6]
[19,"TF2970","高橋 紗佳","amigoT.C","大田原市",null,5,null,null,null,12,40,null,null,null,57]
[35,"TM7104","高橋 人史","FTS","宇都宮",12,15,null,10,4,2,5,null,null,null,48]
[214,"TM3638","高橋 忠伸","HTC","真岡",null,null,2,0,null,null,null,null,null,null,2]
[123,"TM8474","高橋 優之","※未登録","※未登録",null,null,null,null,1,8,0,null,null,null,9]
[38,"TF2879","高橋 由美子","HTC","真岡",0,null,8,10,null,null,null,null,null,null,18]
[null,null,"高橋 利通","ウイングTC","鹿沼",null,null,null,null,null,null,null,null,2,null,2]
[9,"TM9994","高山 禎唯","Ｎｅｘｔ．","宇都宮",35,15,null,30,35,null,45,null,null,null,160]
[200,"TM7421","高松 寛行","サルトビ","宇都宮",2,null,null,null,null,null,null,null,null,null,2]
[13,"TM9203","高松 勇輝","ロイヤルテニスクラブ","宇都宮",60,15,null,15,null,12,30,null,null,null,132]
[118,"TM8501","高村 充","BOSS","宇都宮",0,0,2,0,6,2,null,null,null,null,10]
[95,"TM0413","高村 直人","ＨＩＴ","宇都宮",null,15,null,0,null,null,null,null,null,2,17]
[115,"TM4480","高村 裕","Double Nine","宇都宮",0,2,0,7,1,null,null,null,null,null,10]
[null,null,"高木 浩史","フリー",null,null,null,null,null,null,null,null,null,1,null,1]
[62,"TF5764","国分 文子","BURJ","小山市",null,null,null,null,null,2,null,null,null,null,2]
[26,"TF2075","黒沼 愛生","JKテニスガーデン","宇都宮",null,null,null,30,null,null,null,null,null,null,30]
[32,"TM0821","根本 昌幸","Double Nine","宇都宮",4,34,0,3,1,null,15,null,null,null,57]
[228,"TM3261","根本 誠也","宇都宮大学","宇都宮",null,null,null,null,1,null,null,null,null,null,1]
[24,"TF3302","佐藤 希星","サトウGTC","宇都宮",null,40,null,null,null,null,null,null,null,null,40]
[143,"TM7581","佐藤 巧","To-Be","宇都宮",6,null,null,0,null,null,null,null,null,null,6]
[86,"TM6484","佐藤 彰洋","Ｎｅｘｔ．","宇都宮",null,2,8,7,1,null,null,null,null,null,{"$f":"SUM(F132:O132)","v":18}]
[186,"TM3625","佐藤 慎矢","クロスポイント","佐野市",2,null,null,null,1,null,null,null,null,null,3]
[200,"TM9056","佐藤 大耀","サトウGTC","宇都宮",null,2,null,null,null,null,null,null,null,null,2]
[17,"TF0631","佐藤 美枝子","みかも山Ｇ.Ｔ.Ｃ","佐野市",15,25,15,3,null,2,5,null,null,null,65]
[90,"TM8227","佐藤 優次","帝京大学","宇都宮",16,null,null,null,null,null,null,null,null,null,16]
[36,"TM1853","斎藤 優斗","To-Be","宇都宮",4,5,8,3,4,8,15,null,null,null,47]
[45,"TM2895","坂寄 拓夢","Double Nine","宇都宮",16,0,5,15,4,null,null,null,null,null,40]
[39,"TF6778","坂口 詩織","※未登録","※未登録",null,null,null,null,null,12,null,null,null,null,12]
[54,"TF9530","坂本 志織","フリー","栃木県テニス協会",null,null,null,3,null,null,null,null,null,null,3]
[99,"TM9498","坂本 昴士","宇都宮大学","宇都宮",6,null,null,null,null,8,null,null,null,null,14]
[107,"TM7459","三橋 航","クロスポイント","佐野市",null,0,0,null,6,2,5,null,null,null,13]
[186,"TM6605","三鍋 晴夫","KTC","下野市",null,2,null,null,1,null,null,null,null,null,3]
[228,"TM3204","三條目 旬","キマグー","小山市",null,null,null,null,1,null,null,null,null,null,1]
[68,"TM8297","山戸 大輔","サルトビ","宇都宮",16,0,0,10,1,null,null,null,null,null,27]
[102,"TM8821","山口 勝","アズリーダ","小山市",0,0,8,0,1,null,5,null,null,null,14]
[80,"TM0305","山口 明","Double Nine","宇都宮",0,19,0,0,1,null,0,null,null,null,20]
[228,"TM2979","山森 要","サークルK","小山市",null,null,null,null,1,null,null,null,null,null,1]
[262,"TM1628","山谷 慧吾","宇都宮大学","宇都宮",0,null,null,null,1,null,null,null,null,null,1]
[44,"TM8887","山田 英樹","アズリーダ","小山市",8,7,5,10,4,2,5,null,null,null,41]
[200,"TM7569","山田 祐輔","宇都宮大学","宇都宮",null,null,2,null,null,null,null,null,null,null,2]
[23,"TF5536","山藤 いち子","ユニティ（ＵＮＴ）","宇都宮",null,null,null,null,10,12,25,null,null,null,47]
[197,"TM3649","山本 哲也","グラスホッパー","宇都宮",null,0,2,0,1,null,null,null,null,null,3]
[22,"TF5992","山本 典子","ｱｲﾎﾞさくら","宇都宮",0,25,2,null,null,null,25,null,null,null,52]
[103,"TM7831","山本 竜彦","リバティー","宇都宮",0,1,12,0,null,null,null,null,null,null,13]
[228,"TM7997","志賀 路朗","サルトビ","宇都宮",1,null,null,null,null,null,null,null,null,null,1]
[13,"TF9514","氏家 悦子","KTC","下野市",null,40,null,20,1,2,25,null,null,null,88]
[null,null,"寺内 惠佑","フリー",null,null,null,null,null,null,null,null,null,null,1,1]
[94,"TM9809","持田 聡","フィナリスタ","真岡",0,0,5,2,1,8,0,null,null,null,16]
[154,"TM4713","鹿島 龍","ダブルベーグル","小山市",1,0,0,1,4,null,0,null,null,null,6]
[228,"TM4625","篠原 大樹","キマグー","小山市",null,null,null,null,1,null,null,null,null,null,1]
[22,"TM2503","若林 克弥","ＨＩＴ","宇都宮",12,null,0,45,10,null,15,null,null,null,82]
[11,"TM1145","手塚 有莉","宇都宮テニスクラブ","宇都宮",null,45,null,100,null,null,null,null,null,null,145]
[33,"TF6708","手塚 和子","宇都宮テニスクラブ","宇都宮",null,5,null,20,null,null,null,null,null,null,25]
[228,"TM6523","宗像 駿人","※未登録","※未登録",null,null,null,null,1,null,null,null,null,null,1]
[null,null,"秋山 裕一","River","足利",null,null,null,null,null,null,null,null,1,null,1]
[71,"TM3021","出井 統","River","足利",null,0,null,null,25,null,null,null,null,null,25]
[28,"TF2222","勝澤 悠衣","CTC","大田原市",null,null,25,null,null,null,null,null,null,null,25]
[155,"TM4075","升田 貴之","泉テニスクラブ（ITC)","矢板市",null,null,null,null,null,null,5,null,null,null,5]
[223,"TM4686","小宮 孝佳","VECTOR","宇都宮",0,2,null,0,null,null,null,null,null,null,2]
[50,"TF0169","小栗 美佐江","ノグチテニススクール小山","小山市",null,null,null,null,1,null,5,null,null,null,6]
[39,"TF4921","小室 みつ子","RIZU","宇都宮",null,null,null,null,null,12,null,null,null,null,12]
[200,"TM9553","小松原 富茂次","サンデーテニスクラブ","足利",null,null,null,null,null,2,null,null,null,null,2]
[149,"TM7832","小倉 広之","ダブルベーグル","小山市",0,1,null,1,4,null,null,null,null,null,6]
[228,"TM8387","小田 大仁","NSNL","小山市",null,null,null,null,1,null,null,null,null,null,1]
[129,"TM7820","小島 繁幸","足利ローンテニスクラブ","足利",null,7,null,1,null,null,null,null,null,null,8]
[149,"TM9702","小畑 紀之","フィナリスタ","真岡",4,0,2,0,null,null,null,null,null,null,6]
[51,"TF0951","小峯 ひとみ","KTC","下野市",null,null,0,null,1,null,5,null,null,null,6]
[126,"TM9380","小堀 栄行","ｱｲﾎﾞさくら","宇都宮",1,2,5,0,1,null,null,null,1,2,12]
[65,"TM5060","小野 裕司","フリー","栃木県テニス協会",0,9,12,7,null,null,null,null,null,null,28]
[200,"TM4672","小野崎 康裕","Team HOWDY","宇都宮",null,null,2,null,null,null,null,null,null,null,2]
[145,"TM8032","小野寺 潤","サトウGTC","宇都宮",2,null,null,null,4,null,null,null,null,null,6]
[5,"TM2508","小林　 宰","宇都宮テニスクラブ","宇都宮",null,120,80,null,null,null,null,null,null,null,200]
[54,"TF4958","小林 かほり","足利ローンテニスクラブ","足利",null,null,null,3,null,null,null,null,null,null,3]
[12,"TM1300","松村 智也","足利ローンテニスクラブ","足利",20,5,null,30,15,30,45,null,null,null,145]
[140,"TM5331","松尾 一馬","ダブルベーグル","小山市",1,0,5,0,1,null,null,null,null,null,7]
[52,"TM2928","松本 開渡","グラスホッパー","宇都宮",22,null,12,0,null,null,null,null,null,null,34]
[105,"TM6284","松葉 直樹","足利ローンテニスクラブ","足利",0,4,null,7,null,2,null,null,null,null,13]
[131,"TM8166","照井 隆晃","鹿沼市役所","鹿沼",4,4,null,null,null,null,null,null,null,null,8]
[1,"TF1364","上吉原 あい","USUI-PLYWOOD","宇都宮",null,null,null,null,null,null,null,632,null,null,632]
[87,"TM0337","植竹 徹","足利ローンテニスクラブ","足利",12,0,null,0,1,null,5,null,null,null,18]
[112,"TM9911","織田 充","カフェ・オレ","宇都宮",4,null,null,7,null,null,null,null,null,null,11]
[162,"TM0868","森 貴洸","SUBARU","宇都宮",null,null,5,0,null,null,null,null,null,null,5]
[180,"TM9108","森田 雅文","ビッグツリー","宇都宮",2,1,0,0,1,null,null,null,null,null,4]
[83,"TM9566","森田 晃夫","グラスホッパー","宇都宮",null,2,12,5,null,null,null,null,null,null,19]
[null,null,"森田 博章","デクセリアルズ","鹿沼",null,null,null,null,null,null,null,null,1,null,{"$f":"SUM(F196:O196)","v":1}]
[7,"TM2572","森田 武比呂","アウリンTC","宇都宮",160,null,null,null,null,null,null,null,null,null,160]
[275,"TM8548","森脇 誠之","宇都宮テニスクラブ","宇都宮",0,0,null,0,1,null,null,null,null,null,1]
[228,"TM0126","深井 由高","ホンダエンジニアリング","宇都宮",1,null,null,null,null,null,null,null,null,null,1]
[228,"TM1472","諏合 伸","栄研化学テニス部B","小山市",null,null,null,null,1,null,null,null,null,null,1]
[3,"TF4268","諏訪 円香","ノグチテニススクール小山","小山市",50,175,null,null,null,null,105,null,null,null,330]
[228,"TM4243","杉山 正博","P.J.D","真岡",null,1,null,null,null,null,null,null,null,null,1]
[62,"TF6761","杉山 茉優","※未登録","※未登録",null,null,null,null,null,2,null,null,null,null,2]
[214,"TM3009","菅野 葵惟","RIZU","宇都宮",null,0,2,null,null,null,null,null,null,null,2]
[129,"TM2414","菅野 尋文","Ｎｅｘｔ．","宇都宮",1,null,null,7,null,null,null,null,null,null,8]
[228,"TM1296","瀬戸 吉彦","花王硬式テニス部","宇都宮",null,1,null,null,null,null,null,null,null,null,1]
[44,"TF4248","成井 友紀乃","River","足利",null,null,null,null,null,8,null,null,null,null,8]
[54,"TF5469","星野 美奈","ビッグツリー","宇都宮",null,null,null,3,null,null,null,null,null,null,3]
[168,"TM2429","星野 佑輔","Ｎｅｘｔ．","宇都宮",null,null,null,null,4,null,null,null,null,null,4]
[196,"TM5618","正田 友則","ビックサーズデイ","栃木市",1,null,null,1,1,null,null,null,null,null,3]
[11,"TF8480","生井 美智子","宇都宮サンテニスクラブ","宇都宮",0,0,0,20,30,20,25,null,null,null,95]
[67,"TF2931","生井 明日香","ノグチテニススクール小山","小山市",0,null,null,null,1,null,null,null,null,null,1]
[null,null,"西岡 伸悟","D-Staff （ﾃﾞｨｰ・ｽﾀｯﾌ）","鹿沼",null,null,null,null,null,null,null,null,null,1,1]
[114,"TM2182","西村 拓也","REDWOOD","小山市",null,null,null,null,10,null,null,null,null,null,10]
[219,"TM2406","西田 聖悟","宇都宮大学","宇都宮",1,null,null,null,1,null,null,null,null,null,2]
[136,"TM5701","西﨑 翔平","VECTOR","宇都宮",1,2,0,2,1,2,null,null,null,null,8]
[85,"TM2167","青山 正広","ＹＡＺＩＥＳ","佐野市",0,2,8,0,1,8,null,null,null,null,19]
[null,null,"青木 弘昌","サトウGTC","宇都宮",null,null,null,null,null,null,null,null,null,2,2]
[275,"TM2092","青木 拓馬","クロスポイント","佐野市",0,0,null,0,1,null,null,null,null,null,1]
[180,"TM8724","石戸 力","Bloom","宇都宮",1,0,2,0,1,null,null,null,null,null,4]
[76,"TM5748","石戸谷 健進","Double Nine","宇都宮",0,0,0,7,null,null,15,null,null,null,22]
[15,"TM8938","石川 祥","足利ローンテニスクラブ","足利",0,30,null,30,null,50,null,null,null,null,110]
[47,"TF0438","石川 正子","トマト LIS","小山市",null,null,null,null,6,null,null,null,null,null,6]
[null,null,"石川 智恵子","フレンドテニスクラブ","鹿沼",null,null,null,null,null,null,null,null,1,null,1]
[262,"TM5811","石島 英明","ダブルベーグル","小山市",null,0,null,null,1,null,null,null,null,null,1]
[269,"TM2542","折原 正亮","G’MAX","栃木市",null,0,null,0,1,null,null,null,null,null,1]
[52,"TF4635","川井 由佳理","バージュ","下野市",null,5,null,null,null,null,null,null,null,null,5]
[96,"TM9618","川瀬 勇輝","NAO","宇都宮",0,5,null,10,null,null,0,null,null,null,15]
[44,"TF1628","川津 萌衣","※未登録","※未登録",null,null,null,null,null,8,null,null,null,null,8]
[23,"TM7627","川添 章","サトウGTC","宇都宮",2,0,50,10,6,null,5,null,null,null,73]
[269,"TM0658","泉田 敏雄","グラスホッパー","宇都宮",null,0,0,1,null,null,null,null,null,null,1]
[269,"TM7515","染谷 大志","※未登録","※未登録",null,0,null,0,1,null,null,null,null,null,1]
[10,"TF6860","船津 美衣","Ｎｅｘｔ．","宇都宮",30,null,null,90,null,null,null,null,null,null,120]
[228,"TM4831","前田 忍","ダブルベーグル","小山市",null,null,null,null,1,null,null,null,null,null,1]
[9,"TF7606","前田 夢佳","株式会社　星野リゾート","日光市",140,null,null,null,null,null,null,null,null,null,140]
[1,"TM4068","相原 一樹","サトウGTC","宇都宮",null,200,null,null,null,null,200,768,null,null,1168]
[16,"TM0518","相馬 将紀","ビッグツリー","宇都宮",null,null,null,null,10,80,5,null,null,null,95]
[84,"TM4748","増渕 敏之","宇都宮サンテニスクラブ","宇都宮",2,9,5,0,1,2,null,null,null,null,19]
[180,"TM3785","村松 千朋","Bloom","宇都宮",1,0,2,0,1,null,null,null,null,null,4]
[177,"TM4438","村上 真章","Ｎｅｘｔ．","宇都宮",1,1,null,2,null,null,null,null,null,null,4]
[54,"TF5971","村上 智子","ビッグツリー","宇都宮",null,null,null,3,null,null,null,null,null,null,3]
[168,"TM4509","太田 剛夕","JKテニスガーデン","宇都宮",null,null,null,null,4,null,null,null,null,null,4]
[49,"TM5428","太田 真人","コマツ硬式テニス部","小山市",null,5,null,null,null,null,30,null,null,null,35]
[47,"TF3223","太田 麗華","ユニティ（ＵＮＴ）","宇都宮",null,null,null,null,6,null,null,null,null,null,6]
[149,"TM6783","大浦 高明","(爆)TC","小山市",1,0,null,1,4,null,null,null,1,null,7]
[null,null,"大河原 秀之","デクセリアルズ","鹿沼",null,null,null,null,null,null,null,null,8,4,12]
[228,"TM2164","大垣 波人","FTS","宇都宮",null,null,null,null,1,null,null,null,null,null,1]
[8,"TF4317","大貫 則子","サンライズ","小山市",4,40,70,3,20,0,5,null,null,null,142]
[124,"TM8808","大久保 真人","サトウGTC","宇都宮",4,0,null,null,null,null,5,null,null,null,9]
[262,"TM3843","大橋 良矩","River","足利",null,0,null,1,null,null,null,null,null,null,1]
[null,null,"大山 礼子","UIテニスクラブ","鹿沼",null,null,null,null,null,null,null,null,null,4,4]
[17,"TM6064","大森 拓馬","GTCC","大田原市",4,30,null,15,null,8,15,21,null,null,93]
[18,"TF5533","大塚 綾子","RIZU","宇都宮",0,null,2,3,10,20,25,null,null,null,60]
[168,"TM4258","大塚 元暉","OTSC","小山市",null,null,null,null,4,null,null,null,null,null,4]
[7,"TF5923","大纏 三奈","宇都宮テニスクラブ","宇都宮",null,105,25,null,null,null,40,null,null,null,170]
[43,"TM4338","大纏 仁","ＨＯＮＤＡ Ｔ．Ｃ","宇都宮",2,34,5,null,null,null,null,null,null,null,41]
[88,"TM3262","大島 義宏","ウィンディ","宇都宮",0,0,2,7,4,null,5,null,null,null,18]
[66,"TM9775","大嶋 淳一","エキサイト","小山市",1,2,8,0,4,8,5,null,null,null,28]
[219,"TM1045","大内 敏","カフェ・オレ","宇都宮",1,1,null,null,null,null,null,null,null,null,2]
[228,"TM9005","大林 紀章","※未登録","※未登録",null,null,null,null,1,null,null,null,null,null,{"$f":"SUM(F260:O260)","v":1}]
[18,"TM5403","大和 秀行","足利ローンテニスクラブ","足利",20,30,null,3,4,20,15,null,null,null,92]
[155,"TM2179","鷹家 優一","キヤノン","宇都宮",null,null,5,null,null,null,null,null,null,null,5]
[59,"TM3376","沢井 研二","宇都宮サンテニスクラブ","宇都宮",6,0,5,3,4,8,5,null,null,null,31]
[25,"TM4769","谷崎 悠真","キマグー","小山市",4,30,12,3,6,12,5,null,null,null,72]
[155,"TM3249","谷野 順一","ミレニアム","宇都宮",null,null,5,null,null,null,null,null,null,null,5]
[228,"TM2050","炭谷 侑寛","宇都宮大学","宇都宮",null,null,null,null,1,null,null,null,null,null,1]
[223,"TM1458","竹内 椋汰","サトウGTC","宇都宮",2,0,0,null,null,null,null,null,null,null,2]
[155,"TM2388","竹澤 裕都","Ｎｅｘｔ．","宇都宮",null,null,5,null,null,null,null,null,null,null,5]
[262,"TM6733","中山 潤","コマツ硬式テニス部","小山市",null,null,null,0,1,null,null,null,null,null,1]
[62,"TF0157","中塚 萌香","※未登録","※未登録",null,null,null,null,null,2,null,null,null,null,2]
[108,"TM7522","仲山 剛央","ＹＡＺＩＥＳ","佐野市",0,5,0,5,1,2,null,null,null,null,13]
[165,"TM3517","仲澤 聖人","ウィンディ","宇都宮",null,1,null,null,4,null,null,null,null,null,5]
[61,"TF9799","猪瀬 七海","宇都宮大学","宇都宮",null,null,null,null,1,2,null,null,null,null,3]
[98,"TM4587","町井 浩美","ウィンディ","宇都宮",null,0,null,14,null,null,null,null,null,null,14]
[54,"TF7845","町井 真理子","ビッグツリー","宇都宮",null,null,null,3,null,null,null,null,null,null,3]
[null,null,"長岡 大介","鹿沼市役所","鹿沼",null,null,null,null,null,null,null,null,null,1,1]
[100,"TM3529","長島 成司","グラスホッパー","宇都宮",12,0,2,0,null,null,null,null,null,null,14]
[74,"TM1611","長浜 拓","Team HOWDY","宇都宮",4,5,8,null,null,2,5,null,null,null,24]
[61,"TM9808","津浦 隆之","フィナリスタ","真岡",0,5,null,0,10,null,15,null,null,null,30]
[20,"TF4899","坪井 美佳","ユニティ（ＵＮＴ）","宇都宮",4,25,2,3,10,12,0,null,null,null,56]
[39,"TF1544","坪井 友美","足利ローンテニスクラブ","足利",null,null,null,null,null,12,null,null,null,null,12]
[42,"TM9810","天海 遥","宇都宮大学","宇都宮",39,null,null,null,null,2,null,null,null,null,41]
[101,"TM3616","田村 憲一","足利ローンテニスクラブ","足利",2,9,null,0,1,2,null,null,null,null,14]
[109,"TM9489","田中 義人","ＳＢＴＣ","宇都宮",null,null,12,null,null,null,null,null,null,null,12]
[138,"TM1395","田島 孝悟","佐野サンライズ","佐野市",null,null,null,null,null,2,5,null,null,null,7]
[50,"TM0823","田部谷 正和","G’MAX","栃木市",4,5,null,3,6,2,15,null,null,null,35]
[152,"TM4218","渡部 英明","Bloom","宇都宮",2,1,2,0,1,null,null,null,null,null,6]
[53,"TM7576","渡辺 啓太","Ｎｅｘｔ．","宇都宮",1,19,null,14,null,null,null,null,null,null,34]
[152,"TM8493","渡辺 充教","グラスホッパー","宇都宮",2,0,2,1,1,null,null,null,null,null,6]
[228,"TM3448","渡辺 慎吾","自治医科大学教職員テニスクラブ","下野市",null,null,null,1,null,null,null,null,null,null,1]
[162,"TM8015","土屋 晃太","ビッグツリー","宇都宮",0,null,null,null,null,null,5,null,null,null,5]
[106,"TM4153","嶋立 郡","ウィンディ","宇都宮",null,2,5,2,4,null,null,null,null,null,13]
[155,"TM9050","湯川 碧樹","宇都宮大学","宇都宮",null,null,5,null,null,null,null,null,null,null,5]
[41,"TM2832","藤 智之","佐野市役所","佐野市",16,2,2,19,1,2,null,null,null,null,42]
[30,"TM8290","藤原 正貴","自治医科大学教職員テニスクラブ","下野市",4,null,null,null,25,null,30,null,null,null,59]
[115,"TM8865","藤原 篤","グラスホッパー","宇都宮",0,0,2,7,1,null,null,null,null,null,10]
[137,"TM6544","藤原 弥","チームU&T","足利",null,null,null,null,null,null,null,7,null,null,7]
[168,"TM4884","藤倉 俊一","ＬＯＶＥ・ＡＬＬ（ラヴ・オール）","足利",null,4,null,null,null,null,null,null,null,null,4]
[27,"TM0596","藤倉 諒","VOX","下野市",0,15,null,null,6,null,45,null,null,null,66]
[155,"TM6066","藤田 空斗","ダブルベーグル","小山市",null,null,5,null,null,null,null,null,null,null,5]
[62,"TM7661","藤田 弘幸","宇都宮テニスクラブ","宇都宮",4,0,20,0,null,null,5,null,null,null,29]
[31,"TM4134","藤澤 義仁","ダブルベーグル","小山市",12,5,0,3,6,2,30,null,null,null,58]
[48,"TM3094","藤澤 柾輝","ＨＩＴ","宇都宮",12,15,0,10,null,null,null,null,null,null,37]
[186,"TM8461","陶山 恭平","宇都宮大学","宇都宮",null,null,2,null,1,null,null,null,null,null,3]
[200,"TM4616","那須 友紀","リバティー","宇都宮",null,null,null,2,null,null,null,null,null,null,2]
[132,"TM4799","内田 信彦","サトウGTC","宇都宮",4,0,null,4,null,null,null,null,null,null,8]
[62,"TF4667","内田 展子","県庁テニスクラブ","宇都宮",null,null,2,null,null,null,null,null,null,null,2]
[168,"TM2480","日浦 竜馬","宇都宮テニスクラブ","宇都宮",null,null,null,null,4,null,null,null,null,null,4]
[228,"TM4643","日下田 雄","ＫＡＴＡ","鹿沼",null,null,null,null,1,null,null,null,null,null,1]
[39,"TM9136","日吉 智也","宇都宮大学","宇都宮",24,null,null,null,null,20,null,null,null,null,44]
[6,"TF0150","梅津 華","amigoT.C","大田原市",30,65,null,null,null,20,65,null,null,null,180]
[72,"TM5840","梅津 貴史","サトウGTC","宇都宮",8,2,null,null,15,null,null,null,null,null,25]
[46,"TM7036","梅津 京","CTC","大田原市",4,15,0,3,1,12,5,null,null,null,40]
[228,"TM1531","萩原 稔","ウィンディ","宇都宮",null,null,null,null,1,null,null,null,null,null,1]
[null,null,"柏崎 佳子","フリー",null,null,null,null,null,null,null,null,null,null,1,1]
[19,"TM0701","柏崎 秀明","River","足利",null,15,null,3,10,30,30,null,null,null,88]
[28,"TF1919","白石 真里名","宇都宮テニスクラブ","宇都宮",null,25,null,null,null,null,null,null,null,null,25]
[132,"TM9511","薄井 啓輔","LEX","宇都宮",null,null,2,2,4,null,null,null,null,2,10]
[142,"TM2431","迫田 宗達","P.J.D","真岡",null,null,null,null,6,null,null,null,null,null,6]
[35,"TF7397","飯野 昭子","リバティー","宇都宮",15,null,null,null,1,null,5,null,null,null,21]
[214,"TM1438","樋口 潤","D-Staff （ﾃﾞｨｰ・ｽﾀｯﾌ）","鹿沼",0,null,2,null,null,null,null,null,null,null,2]
[109,"TM2474","膝附 宥太","BEST","栃木市",12,null,null,null,null,null,null,null,null,null,12]
[168,"TM6474","服部 宏史","カフェ・オレ","宇都宮",4,null,null,null,null,null,null,null,null,null,4]
[39,"TF9180","福岡 幸江","足利ローンテニスクラブ","足利",null,null,null,null,null,12,null,null,null,null,{"$f":"SUM(F324:O324)","v":12}]
[null,null,"福士 拓海","フリー",null,null,null,null,null,null,null,null,null,1,null,1]
[228,"TM7089","福田 拓矢","※未登録","※未登録",null,null,null,null,1,null,null,null,null,null,1]
[6,"TM6649","福田 裕之","Double Nine","宇都宮",35,70,null,15,null,null,45,null,null,null,165]
[4,"TM2477","福田 諒平","ＨＩＴ","宇都宮",95,5,0,60,60,null,5,null,null,null,225]
[67,"TM8175","福島 崇史","サトウGTC","宇都宮",4,5,5,3,4,2,5,null,null,16,44]
[228,"TM3811","平尾 竹識","コマツ硬式テニス部","小山市",null,null,null,null,1,null,null,null,null,null,1]
[28,"TF1230","平野 愛美","River","足利",null,25,null,null,null,null,null,null,null,null,25]
[44,"TF5583","平野 有芽","LEX","宇都宮",null,null,8,null,null,null,null,null,null,null,8]
[37,"TF8891","平野 里佳","VOX","下野市",4,0,0,10,1,null,5,null,null,null,20]
[186,"TM2543","柄澤 伸治","ＨＯＮＤＡ Ｔ．Ｃ","宇都宮",null,null,2,1,null,null,null,null,null,null,3]
[53,"TF1291","片山 智子","SUBARU","宇都宮",4,null,null,null,null,null,null,null,null,null,4]
[36,"TF2891","片野 優子","ランチBOX","真岡",15,5,null,null,null,null,null,null,null,null,20]
[43,"TF5748","保利 ちひろ","宇都宮サンテニスクラブ","宇都宮",null,null,null,10,null,null,null,null,null,null,10]
[228,"TM2232","峰島 陸","サトウGTC","宇都宮",null,1,null,null,null,null,null,null,null,null,1]
[60,"TF6298","北條 妙恵","ER","大田原市",0,null,null,3,null,null,null,null,null,null,3]
[228,"TM9055","北澤 良","レモンティー","小山市",null,null,null,null,1,null,null,null,null,null,1]
[28,"TF5483","牧島 萌花","LEX","宇都宮",null,null,25,null,null,null,null,null,null,null,25]
[60,"TM3902","牧野 圭一郎","VOX","下野市",null,30,null,null,null,null,null,null,null,null,30]
[194,"TM3310","木滑 啓佑","カフェ・オレ","宇都宮",null,2,null,0,1,null,null,null,null,null,3]
[200,"TM7317","木村 寛","ＨＯＮＤＡ Ｔ．Ｃ","宇都宮",null,null,2,null,null,null,null,null,null,null,2]
[200,"TM5728","木村 昌幸","グラスホッパー","宇都宮",null,null,null,2,null,null,null,null,null,null,2]
[8,"TM2680","木本 和寿","VOX","下野市",null,0,null,null,null,null,120,40,null,null,160]
[21,"TM8283","木本 凉介","VOX","下野市",null,15,null,null,null,null,70,null,null,null,85]
[180,"TM5115","野口 朔太郎","VOX","下野市",0,0,2,1,1,null,null,null,null,null,4]
[147,"TM3987","野口 祐二","南河内テニスクラブ","下野市",0,null,5,0,1,null,null,null,null,null,6]
[228,"TM6465","矢田部 隼哉","※未登録","※未登録",1,null,null,null,null,null,null,null,null,null,1]
[29,"TM0860","矢木田 義人","キヤノン","宇都宮",20,5,0,0,null,20,15,null,null,null,60]
[167,"TM5114","柳 敏幸","足利ローンテニスクラブ","足利",null,2,null,null,1,2,null,null,null,null,5]
[70,"TM2884","柳田 一真","フィナリスタ","真岡",0,null,8,7,4,2,5,null,null,null,26]
[194,"TM8328","柳田 浩幸","KGTC","真岡",0,null,2,null,1,null,null,null,null,null,3]
[2,"TM3454","柚木 武","Yuzu TS","真岡",null,0,null,null,null,null,null,413,null,null,413]
[5,"TF2818","落合 真由美","UIテニスクラブ","鹿沼",30,65,15,20,20,30,40,null,null,4,224]
[51,"TM1975","落合 聡","宇都宮サンテニスクラブ","宇都宮",0,0,12,null,10,8,5,null,null,null,35]
[37,"TM2889","両角 賢一郎","ＨＯＮＤＡ Ｔ．Ｃ","宇都宮",0,null,null,15,null,null,30,null,null,null,45]
[78,"TM9834","林 修身","パワフルテニスクラブ","真岡",4,null,0,null,4,8,5,null,null,null,21]
[127,"TM4814","鈴木 宏征","カフェ・オレ","宇都宮",8,null,null,null,null,null,null,null,null,null,8]
[228,"TM9502","鈴木 俊寛","泉テニスクラブ（ITC)","矢板市",null,null,null,1,null,null,null,null,null,null,1]
[104,"TM0869","鈴木 渉","泉テニスクラブ（ITC)","矢板市",0,null,null,0,null,8,5,null,null,null,13]
[111,"TM0600","鈴木 和彦","ＬＯＶＥ・ＡＬＬ（ラヴ・オール）","足利",0,null,null,null,4,8,null,null,null,null,12]
[56,"TM8311","廣田 晴紀","dream","小山市",0,null,null,10,6,null,15,null,null,null,31]
[21,"TF3512","齋藤 敦子","amigoT.C","大田原市",4,25,0,null,null,20,5,null,null,null,54]
[197,"TM4195","齋藤 裕茂","VECTOR","宇都宮",0,0,null,2,1,null,null,null,null,null,3]
[57,"TM7652","髙村 英俊","Hinata","鹿沼",20,0,2,3,1,null,5,null,null,null,31]
[200,"TM6937","髙田 壱斗","帝京大学","宇都宮",null,null,2,null,null,null,null,null,null,null,2]
[269,"TM1591","髙野 将義","VECTOR","宇都宮",0,0,null,1,null,null,null,null,null,null,1]

{"sheet":"ダブルスランキング","index":3,"n_rows":580,"n_cols":16,"rows_kept":580,"cut":false,"hidden":false,"merged":[[1,0,2,0],[1,1,2,1],[1,2,2,2],[1,3,1,4],[1,15,2,15]]}
["Doubles Ranking",null,null,null,null,null,null,null,null,null,null,null,null,null,null,"Update ; 2019-10-06"]
["順位","TTA登録番号","選手名","所属",null,"春季","小山","ダンロップ","秋季","宇都宮","両毛","選抜","JOP","鹿沼","鹿沼","合計"]
[null,null,null,"クラブ","協会",2019,2019,2019,2018,2019,2019,2019,"2019-07","秋季","春季"]
[242,"TM0677","ソンバット スリヤチャン","みくりやTC","足利",null,null,null,null,null,5,null,null,null,null,{"$f":"SUM(F4:O4)","v":5}]
[56,"TF8315","阿久津 裕子","ユニティ（ＵＮＴ）","宇都宮",35,null,0,null,8,null,5,null,null,null,48]
[129,"TM2853","阿久津 裕汰","サトウGTC","宇都宮",null,25,null,null,null,null,null,null,null,null,25]
[81,"TM6029","阿久津 亮汰","SUBARU","宇都宮",4,25,null,10,5,null,0,null,null,null,44]
[131,"TF9418","阿部 加代子","足利みなみテニスクラブ","足利",null,null,null,null,null,12,null,null,null,null,12]
[107,"TM8894","阿部 喜亮","巌翠テニスクラブ","小山市",12,null,5,10,null,null,5,null,null,null,32]
[204,"TM3734","阿部 隼也","VECTOR","宇都宮",null,null,9,null,null,null,null,null,8,null,17]
[43,"TF6918","阿部 祐理子","P.J.D","真岡",12,55,null,0,null,null,null,null,null,null,67]
[190,"TM5405","綾目 徹也","レモンティー","小山市",1,6,0,2,2,null,null,null,null,null,11]
[48,"TM6396","安生 克典","FTS","宇都宮",12,null,15,null,8,20,15,null,null,null,70]
[79,"TM0993","伊東 和輝","Ｎｅｘｔ．","宇都宮",null,null,45,null,null,null,null,null,null,null,45]
[230,"TM5476","伊藤 健史","ダブルベーグル","小山市",null,6,null,null,null,null,null,null,null,null,6]
[339,"TM6149","伊藤 晃洋","泉テニスクラブ（ITC)","矢板市",1,null,null,null,null,null,null,null,null,null,1]
[291,"TM4648","為我井 義和","dream","小山市",null,null,2,null,null,null,null,null,null,null,2]
[291,"TM8205","井桁 修","みくりやTC","足利",null,null,null,null,null,2,null,null,null,null,2]
[23,"TF2939","磯貝 美恵子","クロスポイント","佐野市",12,null,30,15,30,null,30,null,null,null,117]
[105,"TF3650","磯山 有美","ユニティ（ＵＮＴ）","宇都宮",4,null,15,3,null,null,null,null,null,null,22]
[81,"TF1704","磯部 みよ子","TEAM SWY","栃木市",35,null,null,null,null,null,null,null,null,null,35]
[11,"TF3749","稲川 紀子","真岡STC","真岡",20,null,30,null,30,80,70,null,null,null,230]
[291,"TM3536","羽鳥 賢治","ローズテニスガーデン","小山市",null,null,2,null,null,null,null,null,null,null,2]
[72,"TM3407","浦部 貴史","チームU&T","足利",4,null,15,30,null,null,null,null,null,null,49]
[5,"TM8215","浦部 俊之","チームU&T","足利",95,null,200,30,null,8,null,21,null,null,354]
[242,"TM2463","永井 義佑","カフェ・オレ","宇都宮",null,null,null,null,5,null,null,null,null,null,5]
[107,"TF5443","永井 千尋","RIZU","宇都宮",12,null,0,null,2,8,null,null,null,null,22]
[199,"TM5433","永島 圭祐","BEST","栃木市",8,1,1,null,null,null,null,null,null,null,10]
[62,"TF6005","益子 きく子","ミッキー","宇都宮",4,10,15,15,null,null,null,null,null,null,44]
[229,"TM3268","越智 大輔","キヤノン","宇都宮",4,null,null,3,null,null,null,null,null,null,7]
[171,"TF3577","遠藤 律子","足利みなみテニスクラブ","足利",null,null,null,null,null,2,null,null,null,null,2]
[178,"TM4315","塩野目 弘人","HTC","真岡",8,1,null,2,2,null,null,null,null,null,13]
[3,"TF8515","塩澤 美幸","FTS","宇都宮",null,null,null,100,null,30,200,120,null,null,450]
[289,"TM2937","奥山 敬一郎","エンデバーテニスクラブ","小山市",1,null,0,null,2,null,null,null,null,null,3]
[130,"TM8034","奥山 直大","足利ローンテニスクラブ","足利",20,null,5,null,null,null,null,null,null,null,25]
[113,"TF6082","横島 雅代","昭和電工マスターズ","小山市",null,null,19,null,null,null,null,null,null,null,19]
[61,"TF3103","横尾 恭栄","ビッグツリー","宇都宮",12,1,5,10,2,null,15,null,null,null,45]
[null,null,"横尾 良太","JAしもつけ",null,null,null,null,null,null,null,null,null,null,1,1]
[90,"TM2714","岡田 遥平","レモンティー","小山市",4,6,5,14,2,2,5,null,null,null,38]
[242,"TM4606","岡島 弘幸","ジャルダン","足利",null,null,null,null,null,5,null,null,null,null,5]
[256,"TM0312","岡部 昭男","足利ローンテニスクラブ","足利",1,null,null,2,null,2,null,null,null,null,5]
[51,"TM6207","岡本 隆志","ＳＢＴＣ","宇都宮",12,6,15,3,5,8,15,null,null,null,64]
[35,"TF8542","沖田 恵子","RIZU","宇都宮",35,6,5,15,12,12,0,null,null,null,85]
[null,null,"荻野 怜子","ミッキー","宇都宮",null,null,null,null,null,null,null,null,1,null,1]
[133,"TM4913","下村 卓也","SUBARU","宇都宮",16,null,null,3,5,null,null,null,null,null,24]
[14,"TM8093","加藤 貴哉","鹿沼市役所","鹿沼",35,15,30,60,50,null,null,null,1,null,191]
[41,"TM3198","加藤 秀昭","P.J.D","真岡",null,null,0,null,null,30,45,null,null,null,75]
[15,"TM8241","加藤 智之","Ｎｅｘｔ．","宇都宮",20,60,5,null,20,12,70,null,null,null,187]
[291,"TM1114","加藤 望未","宇都宮大学","宇都宮",null,null,null,null,null,2,null,null,null,null,2]
[291,"TM4154","嘉沼 康佑","※未登録","※未登録",null,null,null,null,null,2,null,null,null,null,2]
[87,"TM1560","歌川 寛得","ビッグツリー","宇都宮",0,null,null,30,8,2,null,null,null,null,40]
[339,"TM1881","河合 亮","Bloom","宇都宮",null,1,null,null,null,null,null,null,null,null,1]
[14,"TF5751","河上 初美","ロイヤルテニスクラブ","宇都宮",60,null,null,10,80,null,null,null,null,null,150]
[40,"TM8346","河内 良太","足利ローンテニスクラブ","足利",20,null,5,3,20,null,30,null,null,null,78]
[8,"TM6238","河内 良容","River","足利",160,null,null,null,null,80,null,null,null,null,240]
[124,"TF2169","花田 圭子","RISING","宇都宮",12,null,null,2,null,null,null,null,null,null,14]
[291,"TM2886","改田 敬一","足利ローンテニスクラブ","足利",null,null,null,null,null,2,null,null,null,null,2]
[171,"TM1509","海老原 亮","フィナリスタ","真岡",null,null,null,7,2,null,5,null,null,null,14]
[203,"TM7460","海老沼 悟志","キマグー","小山市",0,1,0,4,5,null,null,null,null,null,10]
[275,"TM6985","外山 秀樹","エキサイト","小山市",null,1,null,null,2,null,null,null,null,null,3]
[null,null,"外池 勝次","UIテニスクラブ","鹿沼",null,null,null,null,null,null,null,null,1,null,1]
[242,"TM0572","垣内 義則","サトウGTC","宇都宮",null,null,null,null,5,null,null,null,null,null,5]
[158,"TM2276","角田 知久","Ｎｅｘｔ．","宇都宮",8,1,0,1,2,5,0,null,null,null,17]
[291,"TM5644","笠原 空也","REDWOOD","小山市",2,null,null,null,null,null,null,null,null,null,2]
[167,"TM5898","笠松 創太","ＳＢＴＣ","宇都宮",4,10,null,null,null,null,null,null,null,null,14]
[33,"TM1622","笠倉 一寿","dream","小山市",20,10,5,3,5,12,30,null,null,null,85]
[50,"TF0489","笠倉 恵","ローズテニスガーデン","小山市",20,1,30,null,null,null,null,null,null,null,51]
[null,null,"鎌形 諒太","Bloom","宇都宮",null,null,null,null,null,null,null,null,null,1,{"$f":"SUM(F68:O68)","v":1}]
[171,"TF3446","刈田 琴乃","ＩＵＨＷ","大田原市",null,null,null,null,2,null,null,null,null,null,2]
[90,"TF9874","乾 裕子","FAIR WIND","宇都宮",4,null,15,3,8,null,0,null,null,null,30]
[127,"TM3524","関 宏隆","ローズテニスガーデン","小山市",8,10,null,0,8,null,null,null,null,null,26]
[242,"TM0585","関 克之","足利ローンテニスクラブ","足利",null,null,null,null,null,5,null,null,null,null,5]
[242,"TM0621","関口 吉弘","クロスポイント","佐野市",null,null,null,null,null,5,null,null,null,null,5]
[212,"TM5875","関口 直也","Bloom","宇都宮",2,1,0,2,2,2,null,null,1,1,11]
[73,"TM6380","関口 勇二","BEST","栃木市",4,6,5,15,12,2,5,null,null,null,49]
[291,"TM4513","関本 悟","To-Be","宇都宮",null,null,null,2,null,null,null,null,null,null,2]
[272,"TM0866","関亦 英士","フィナリスタ","真岡",null,null,null,3,null,null,null,null,null,null,3]
[9,"TM9798","関野 将司","P.J.D","真岡",60,null,70,45,null,2,45,null,null,null,222]
[85,"TF3171","舘脇 浩子","GTCC","大田原市",4,null,15,10,null,null,5,null,null,null,34]
[71,"TF2344","岸 喜代子","つばめがえし","小山市",4,6,5,10,8,2,5,null,null,null,40]
[60,"TF8880","岩見 英恵","GTCC","大田原市",4,null,15,10,12,null,5,null,null,null,46]
[160,"TF4068","岩崎 享子","リバティー","宇都宮",4,null,null,null,2,null,null,null,null,null,6]
[82,"TF2460","岩崎 江美子","ローズテニスガーデン","小山市",4,1,null,null,null,null,30,null,null,null,35]
[66,"TM9945","岩出 龍彦","SUBARU","宇都宮",16,null,30,3,5,null,0,null,null,null,54]
[80,"TM5826","岩渕 光生","ＨＩＴ","宇都宮",12,10,null,null,8,null,15,null,null,null,45]
[256,"TM4508","亀田 飛翔","River","足利",1,null,null,2,null,2,null,null,null,null,5]
[339,"TM3223","儀賀 章仁","ホンダエンジニアリング","宇都宮",null,null,null,1,null,null,null,null,null,null,1]
[105,"TM8210","菊地 廉","足利ローンテニスクラブ","足利",20,null,5,3,null,5,null,null,null,null,33]
[291,"TM3101","菊地 廣光","ふぇぶれす","足利",null,null,null,null,null,2,null,null,null,null,2]
[291,"TM4173","菊池 健夫","Team HOWDY","宇都宮",null,null,null,null,2,null,null,null,null,null,2]
[260,"TM5579","吉岡 洋","SUBARU","宇都宮",null,null,null,2,2,null,null,null,null,null,4]
[118,"TM8604","吉原 卓未","カフェ・オレ","宇都宮",4,null,5,3,2,null,15,null,null,null,29]
[171,"TF8179","吉成 美穂子","ミッキー","宇都宮",null,null,2,null,null,null,null,null,null,null,2]
[88,"TM0040","吉川 史哲","ＨＯＮＤＡ Ｔ．Ｃ","宇都宮",null,null,2,7,2,12,15,null,null,null,38]
[291,"TM8999","吉川 智也","Team HOWDY","宇都宮",null,null,null,null,2,null,null,null,null,null,2]
[84,"TM5039","吉川 典男","ウィンディ","宇都宮",12,1,5,3,5,12,5,null,null,null,43]
[143,"TM2531","吉村 雄太","サトウGTC","宇都宮",null,null,2,3,null,null,15,null,null,null,20]
[43,"TM2802","吉田 巧","宇都宮テニスクラブ","宇都宮",null,null,30,10,5,null,30,null,null,null,75]
[351,"TM2577","吉田 雅俊","足利銀行","宇都宮",0,null,null,1,null,null,null,null,null,null,1]
[7,"TF9576","吉田 幸子","FTS","宇都宮",35,10,45,30,20,null,120,null,null,null,260]
[209,"TM5336","吉田 真志","ウィンディ","宇都宮",null,null,0,7,2,null,null,null,null,null,9]
[291,"TM2392","吉田 文彦","みくりやTC","足利",null,null,null,null,null,2,null,null,null,null,2]
[1,"TF3760","吉田 麻美","VOX","下野市",null,null,200,100,null,null,200,173,null,null,673]
[242,"TM2227","吉澤 優樹","カフェ・オレ","宇都宮",null,null,null,null,5,null,null,null,null,null,5]
[230,"TM6618","久保 義彦","ウィッチーズテニスクラブ","小山市",null,6,null,null,null,null,null,null,null,null,6]
[12,"TM8868","久保田 桂輔","足利ローンテニスクラブ","足利",4,null,45,45,30,8,70,null,null,null,202]
[147,"TM3888","久保田 昌也","ウィンディ","宇都宮",8,6,5,null,null,null,null,null,null,null,19]
[275,"TM8640","久保田 文一","足利ローンテニスクラブ","足利",1,null,null,2,null,null,null,null,null,null,3]
[135,"TM5418","久保田 芳久","ウィンディ","宇都宮",2,15,1,null,null,null,5,null,null,null,23]
[109,"TF5286","宮 幸子","amigoT.C","大田原市",12,null,5,null,0,0,5,null,null,null,22]
[193,"TF0579","宮下 とも子","ローズテニスガーデン","小山市",null,1,null,null,null,null,null,null,null,null,1]
[143,"TF5039","宮森 智美","TCA","宇都宮",4,1,2,null,null,2,null,null,null,null,9]
[5,"TF1350","宮川 宣子","ローズテニスガーデン","小山市",95,null,0,45,null,80,70,null,null,null,290]
[218,"TM4921","宮前 将","セイシェルテニスクラブ","小山市",0,null,null,null,8,null,null,null,null,null,8]
[18,"TM3054","宮澤 保志","足利ローンテニスクラブ","足利",35,null,45,30,null,20,30,null,null,null,160]
[30,"TM9601","去田 巧","ＬＯＶＥ・ＡＬＬ（ラヴ・オール）","足利",4,null,45,15,8,8,15,null,null,null,95]
[null,null,"橋本 直樹","Bloom","宇都宮",null,null,null,null,null,null,null,null,null,4,4]
[58,"TF8925","橋本 美樹","Space 135","那須塩原",12,null,15,14,null,null,5,null,null,null,46]
[2,"TF8848","玉野 奏海","Ｎｅｘｔ．","宇都宮",160,null,200,64,null,null,30,null,null,null,454]
[86,"TM7329","近藤 敬介","ＬＯＶＥ・ＡＬＬ（ラヴ・オール）","足利",20,null,5,15,null,null,null,null,null,null,40]
[46,"TM9297","金井 耀平","ＨＯＮＤＡ Ｔ．Ｃ","宇都宮",null,null,34,7,2,12,15,null,null,null,70]
[33,"TF2522","金久保 順子","P.J.D","真岡",null,null,70,15,null,null,null,null,null,null,85]
[275,"TM4759","金子 衛","VECTOR","宇都宮",1,null,null,2,null,null,null,null,null,null,3]
[213,"TM5032","金子 剛","サンデーテニスクラブ","足利",null,null,null,null,null,8,null,null,null,null,8]
[22,"TM2112","金子 瑞騎","VOX","下野市",null,15,120,null,null,null,null,null,null,null,135]
[92,"TM7692","金子 正二","足利ローンテニスクラブ","足利",12,null,5,null,2,12,5,null,null,null,36]
[149,"TM6231","金子 聡","ダブルベーグル","小山市",4,null,null,null,2,8,5,null,null,null,19]
[115,"TM8168","金子 隆行","県庁テニスクラブ","宇都宮",4,null,null,10,null,null,15,null,null,null,29]
[107,"TF8189","金敷 美由紀","BEST","栃木市",12,null,0,null,2,8,null,null,4,null,26]
[160,"TM4400","櫛下町 光哉","BEST","栃木市",null,null,null,15,null,null,null,null,null,null,15]
[104,"TF2533","粂川 直美","SMILE","小山市",4,null,17,1,null,null,null,null,null,null,22]
[193,"TF1065","桑野 真由子","SMILE","小山市",null,1,null,null,null,null,null,null,null,null,{"$f":"SUM(F132:O132)","v":1}]
[12,"TF0705","穴山 律子","ラフィエスタ","大田原市",20,null,30,45,30,null,70,null,null,null,195]
[75,"TM8333","穴山 榮人","ラフィエスタ","大田原市",null,1,34,null,12,null,null,null,null,null,47]
[38,"TF7473","鍵山 博子","宇都宮サンテニスクラブ","宇都宮",4,1,30,10,12,12,5,null,null,null,74]
[260,"TM3788","原 陽一","※未登録","※未登録",null,null,null,null,2,2,null,null,null,null,4]
[160,"TF9706","原田 照美","GTCC","大田原市",null,null,4,2,null,null,null,null,null,null,6]
[176,"TM3885","古森 健太","※未登録","※未登録",null,null,null,null,8,null,5,null,null,null,13]
[291,"TM7616","古内 諒","佐野市役所","佐野市",null,null,null,null,2,null,null,null,null,null,2]
[61,"TM2125","戸松 博","ＳＢＴＣ","宇都宮",12,null,15,3,5,8,15,null,null,null,58]
[120,"TF9436","戸倉 香奈恵","※未登録","※未登録",null,null,null,15,2,null,null,null,null,null,17]
[139,"TM6267","戸田 真弘","アキレス","足利",null,null,5,3,2,12,null,null,null,null,22]
[80,"TF0687","狐塚 美佐子","富士通","小山市",20,null,null,3,8,null,5,null,null,null,36]
[156,"TF9898","五味 泉","VOX","下野市",4,null,1,1,2,null,null,null,null,null,8]
[118,"TF3397","後藤 愛子","HTC","真岡",null,null,null,3,8,8,null,null,null,null,19]
[70,"TF2454","後藤 久恵","KTC","下野市",12,10,5,3,8,2,null,null,null,null,40]
[67,"TF8760","後藤 景子","ユニティ（ＵＮＴ）","宇都宮",35,null,null,null,8,null,null,null,null,null,43]
[100,"TM9000","後藤 孝文","フィナリスタ","真岡",null,null,null,3,null,2,30,null,2,null,37]
[172,"TM7955","後藤 崇","HTC","真岡",8,null,0,4,2,null,null,null,null,null,14]
[77,"TF0342","工藤 千寿","富士通","小山市",20,1,null,3,8,null,5,null,null,null,37]
[30,"TF1031","工藤 敦子","エンデバーテニスクラブ","小山市",null,null,null,30,null,null,70,null,null,null,100]
[260,"TM2880","広瀬 慎也","dream","小山市",null,null,null,2,2,null,null,null,null,null,4]
[138,"TF1982","江崎 慶子","ラフィエスタ","大田原市",null,null,null,10,null,null,null,null,null,null,10]
[145,"TM7501","江上 貴史","ウィンディ","宇都宮",4,6,null,3,5,2,null,null,null,null,20]
[115,"TM2156","江連 雅晴","県庁テニスクラブ","宇都宮",4,null,null,10,null,null,15,null,null,null,29]
[291,"TM7132","溝畑 賢","ＳＢＴＣ","宇都宮",2,null,null,null,null,null,null,null,null,null,2]
[225,"TM7168","荒井 宏道","ダブルベーグル","小山市",null,6,1,null,null,null,null,null,null,null,7]
[57,"TM7548","荒井 太希","小山ジュニア","小山市",60,null,null,null,null,null,null,null,null,null,60]
[94,"TM4787","荒井 哲也","レモンティー","小山市",4,1,5,14,5,2,5,null,null,null,36]
[165,"TM7927","荒木 浩二","自治医科大学教職員テニスクラブ","下野市",null,null,null,14,null,null,null,null,null,null,14]
[111,"TM8347","高橋 賢都","※未登録","※未登録",null,null,null,null,null,30,null,null,null,null,30]
[139,"TF2970","高橋 紗佳","amigoT.C","大田原市",null,null,5,null,0,0,5,null,null,null,10]
[76,"TM7104","高橋 人史","FTS","宇都宮",8,10,9,10,5,5,null,null,null,null,47]
[291,"TM9593","高橋 晴夫","ｱｲﾎﾞさくら","宇都宮",null,null,null,null,2,null,null,null,null,null,2]
[136,"TM8474","高橋 優之","※未登録","※未登録",null,null,null,2,null,20,null,null,null,null,22]
[169,"TF2879","高橋 由美子","HTC","真岡",0,null,null,1,2,null,null,null,null,null,3]
[291,"TM6071","高際 達也","みくりやTC","足利",null,null,null,null,null,2,null,null,null,null,2]
[58,"TF3106","高崎 直子","Space 135","那須塩原",12,null,15,14,null,null,5,null,null,null,46]
[4,"TM9994","高山 禎唯","Ｎｅｘｔ．","宇都宮",0,35,45,null,8,null,200,79,null,null,367]
[140,"TM7421","高松 寛行","サルトビ","宇都宮",4,null,null,10,2,null,5,null,null,null,21]
[95,"TM9203","高松 勇輝","ロイヤルテニスクラブ","宇都宮",null,null,null,null,5,null,30,null,null,null,35]
[132,"TF1806","高松 和","コマツレディース","小山市",null,null,9,3,null,null,null,null,null,null,12]
[null,null,"高村 英俊","Hinata","鹿沼",null,null,null,null,null,null,null,null,1,2,3]
[186,"TM8501","高村 充","BOSS","宇都宮",1,1,1,7,2,null,null,null,null,null,12]
[27,"TM4480","高村 裕","Double Nine","宇都宮",12,10,15,15,8,12,30,null,null,null,102]
[125,"TF7153","高田 恵美","エキサイト","小山市",null,null,null,1,null,8,5,null,null,null,14]
[99,"TF5246","高島 伸枝","KTC","小山市",4,1,5,null,12,null,5,null,null,null,27]
[143,"TF5764","国分 文子","BURJ","小山市",4,1,2,null,2,null,null,null,null,null,9]
[68,"TM0821","根本 昌幸","Double Nine","宇都宮",4,10,15,10,2,5,5,null,null,null,51]
[122,"TF5046","佐々木 智子","つばめがえし","小山市",null,1,null,14,null,null,null,null,null,null,15]
[15,"TF2248","佐山 幸子","エンデバーテニスクラブ","小山市",12,10,30,45,2,20,30,null,null,null,149]
[101,"TF1816","佐山 真帆","River","足利",null,null,null,15,null,8,null,null,null,null,23]
[115,"TF8799","佐渡友 茂子","GTCC","大田原市",null,null,5,14,null,null,null,null,null,null,19]
[194,"TM7581","佐藤 巧","To-Be","宇都宮",8,null,2,null,null,null,null,null,null,null,10]
[143,"TF3161","佐藤 淳子","BURJ","小山市",4,1,2,null,2,null,null,null,null,null,9]
[205,"TM6484","佐藤 彰洋","Ｎｅｘｔ．","宇都宮",8,null,1,null,null,null,null,null,null,null,9]
[162,"TM3625","佐藤 慎矢","クロスポイント","佐野市",null,null,null,10,null,null,5,null,null,null,15]
[34,"TF1586","佐藤 千恵子","エンデバーテニスクラブ","小山市",12,10,30,3,null,null,30,null,null,null,85]
[160,"TM9056","佐藤 大耀","サトウGTC","宇都宮",null,null,null,null,null,null,15,null,null,null,15]
[171,"TF3734","佐藤 典子","ユニティ（ＵＮＴ）","宇都宮",null,null,null,2,null,null,null,null,null,null,2]
[78,"TF0631","佐藤 美枝子","みかも山Ｇ.Ｔ.Ｃ","佐野市",4,1,0,3,2,12,15,null,null,null,37]
[339,"TM9479","佐藤 文泰","泉テニスクラブ（ITC)","矢板市",1,null,null,null,null,null,null,null,null,null,1]
[291,"TM3295","佐藤 龍","Bloom","宇都宮",null,null,null,2,null,null,null,null,null,null,2]
[230,"TM8192","最上 修平","ウィッチーズテニスクラブ","小山市",null,6,null,null,null,null,null,null,null,null,6]
[291,"TM9852","斎藤 慎介","Bloom","宇都宮",2,null,null,null,null,null,null,null,null,4,6]
[185,"TM1853","斎藤 優斗","To-Be","宇都宮",8,null,2,null,2,null,null,null,null,null,{"$f":"SUM(F196:O196)","v":12}]
[38,"TM2895","坂寄 拓夢","Double Nine","宇都宮",20,10,5,3,12,null,30,null,null,8,88]
[226,"TM3271","坂原 学","足利ローンテニスクラブ","足利",2,null,null,null,null,null,5,null,null,null,7]
[171,"TF6778","坂口 詩織","※未登録","※未登録",null,null,null,null,null,2,null,null,null,null,2]
[138,"TM4738","坂本 光広","FTS","宇都宮",8,null,9,null,5,null,null,null,null,null,22]
[171,"TF1617","坂本 朋子","パワフルテニスクラブ","真岡",null,null,null,2,null,null,null,null,null,null,2]
[null,null,"榊原 莉穂","JAしもつけ",null,null,null,null,null,null,null,null,null,null,1,1]
[74,"TF1637","三浦 郁子","ミッキー","宇都宮",4,null,15,3,null,2,15,null,null,null,39]
[172,"TM7544","三浦 達也","HTC","真岡",8,null,0,4,2,null,null,null,null,null,14]
[207,"TM9513","三浦 敦朗","足利ローンテニスクラブ","足利",null,null,null,7,null,2,null,null,null,null,9]
[26,"TF6411","三笠 陽子","ラフィエスタ","大田原市",20,null,30,30,null,null,30,null,null,null,110]
[110,"TM7459","三橋 航","クロスポイント","佐野市",null,6,0,10,2,8,5,null,null,null,31]
[119,"TF7221","三森 雅子","宇都宮サンテニスクラブ","宇都宮",4,null,5,3,2,null,5,null,null,null,19]
[211,"TM3204","三條目 旬","キマグー","小山市",2,null,2,3,2,0,null,null,null,null,9]
[98,"TM3245","山下 隼","サルトビ","宇都宮",16,null,19,null,null,null,null,null,null,null,35]
[289,"TM0881","山下 隆吾","ホンダエンジニアリング","宇都宮",0,null,null,1,null,2,null,null,null,null,3]
[98,"TM8297","山戸 大輔","サルトビ","宇都宮",16,null,19,null,null,null,null,null,null,null,35]
[171,"TF9484","山口 悦子","宇都宮サンテニスクラブ","宇都宮",null,null,null,null,2,null,null,null,null,null,2]
[221,"TM8821","山口 勝","アズリーダ","小山市",2,1,0,null,null,5,null,null,null,null,8]
[56,"TM0305","山口 明","Double Nine","宇都宮",4,10,15,10,12,5,5,null,null,null,61]
[122,"TF4798","山崎 幸恵","KDDI HTC1801","小山市",null,1,null,14,null,null,null,null,null,null,15]
[71,"TF9969","山崎 美奈子","ローズテニスガーデン","小山市",4,6,5,10,8,2,5,null,null,null,40]
[32,"TF4046","山崎 祐子","ローズテニスガーデン","小山市",95,null,0,null,null,null,null,null,null,null,95]
[188,"TM8887","山田 英樹","アズリーダ","小山市",2,1,0,2,2,5,null,null,null,null,12]
[125,"TF6264","山田 清美","エキサイト","小山市",null,null,null,1,null,8,5,null,1,null,15]
[133,"TF5536","山藤 いち子","ユニティ（ＵＮＴ）","宇都宮",4,6,null,2,null,null,null,null,null,null,12]
[209,"TM8196","山本 雄太","RASH","宇都宮",null,null,0,7,2,null,null,null,null,null,9]
[291,"TM7799","山本 礼","NAO","宇都宮",null,null,null,null,2,null,null,null,null,null,2]
[20,"TF6085","市川 泰世","RIZU","宇都宮",4,null,45,15,8,8,45,null,null,null,125]
[53,"TF7744","市川 敦子","みかも山Ｇ.Ｔ.Ｃ","佐野市",12,6,5,3,null,20,5,null,null,null,51]
[275,"TM9331","市村 敬之","カフェ・オレ","宇都宮",null,null,1,null,2,null,null,null,null,null,3]
[242,"TM4127","市野沢 義行","みくりやTC","足利",null,null,null,null,null,5,null,null,null,null,5]
[140,"TM7997","志賀 路朗","サルトビ","宇都宮",4,null,null,10,2,null,5,null,null,null,21]
[121,"TF9514","氏家 悦子","KTC","下野市",4,6,null,null,null,2,5,null,null,null,17]
[164,"TM9809","持田 聡","フィナリスタ","真岡",null,null,1,7,2,null,5,null,null,null,15]
[121,"TM4713","鹿島 龍","ダブルベーグル","小山市",8,6,5,7,2,null,null,null,null,null,28]
[242,"TM5536","七海 貴紀","GTCC","大田原市",null,null,5,null,null,null,null,null,null,null,5]
[260,"TM4625","篠原 大樹","キマグー","小山市",2,null,null,null,2,null,null,null,null,null,4]
[89,"TM5034","篠原 邦嘉","REDWOOD","小山市",12,1,null,3,5,12,5,null,null,null,38]
[291,"TM6321","篠江 秀徳","Double Nine","宇都宮",null,null,null,null,2,null,null,null,null,null,2]
[109,"TM3189","篠崎 克浩","ウィンディ","宇都宮",4,null,0,7,5,null,15,null,null,null,31]
[89,"TF8932","篠崎 優子","真岡STC","真岡",null,null,null,30,null,null,null,null,null,null,30]
[275,"TM9736","柴崎 邦夫","みくりやTC","足利",1,null,null,null,null,2,null,null,null,null,3]
[163,"TM4119","柴田 宏道","ビッグツリー","宇都宮",8,null,1,1,5,null,null,null,null,null,15]
[74,"TF5338","芝沼 とも子","ミッキー","宇都宮",4,null,15,3,null,2,15,null,1,null,40]
[191,"TM9339","若園 毅","キヤノン","宇都宮",null,10,null,null,null,null,null,null,null,null,10]
[63,"TF5554","若本 三千代","シュガーバンビ","小山市",12,null,15,10,2,null,5,null,null,null,44]
[59,"TM2503","若林 克弥","ＨＩＴ","宇都宮",null,1,null,15,30,12,0,null,null,null,58]
[291,"TM6174","手塚 杏亮","※未登録","※未登録",null,null,null,2,null,null,null,null,null,null,2]
[339,"TM2846","手塚 宏司","RASH","宇都宮",null,null,1,null,null,null,null,null,null,null,1]
[101,"TM2191","手塚 弘紀","ＨＩＴ","宇都宮",12,null,null,null,8,null,15,null,null,null,35]
[165,"TF7370","酒井 恵子","※未登録","※未登録",null,null,null,3,null,null,null,null,null,null,3]
[46,"TF6817","秋山 勝美","River","足利",35,null,null,15,null,8,null,null,null,null,58]
[291,"TM0104","秋山 裕一","River","足利",null,null,null,null,null,2,null,null,1,null,3]
[194,"TM3432","舟橋 明生","カフェ・オレ","宇都宮",8,null,null,null,2,null,null,null,null,null,10]
[156,"TM8124","渋谷 一平","キマグー","小山市",12,1,1,3,null,0,null,null,null,null,17]
[39,"TF4516","重松 千恵子","足利エースアカデミー","足利",35,6,5,3,12,12,0,null,null,null,73]
[23,"TM3021","出井 統","River","足利",null,null,null,null,8,null,120,null,null,null,128]
[171,"TF6286","春山 陽子","足利エースアカデミー","足利",null,null,null,null,null,2,null,null,null,null,2]
[55,"TM4075","升田 貴之","泉テニスクラブ（ITC)","矢板市",4,null,null,15,12,null,30,null,null,null,61]
[174,"TM4686","小宮 孝佳","VECTOR","宇都宮",1,1,null,7,5,null,null,null,null,null,14]
[193,"TF0169","小栗 美佐江","ノグチテニススクール小山","小山市",null,1,null,null,null,null,null,null,null,null,1]
[205,"TM3958","小口 忠史","Double Nine","宇都宮",null,1,null,null,8,null,null,null,null,null,9]
[93,"TF6975","小高 直子","ラベンダー テニスクラブ","足利",4,null,null,14,8,2,0,null,null,null,28]
[171,"TF4921","小室 みつ子","RIZU","宇都宮",null,null,null,null,2,null,null,null,null,null,{"$f":"SUM(F260:O260)","v":2}]
[93,"TF8896","小松原 博子","ＬＯＶＥ・ＡＬＬ（ラヴ・オール）","足利",4,null,null,14,8,2,0,null,null,null,28]
[26,"TM8555","小川 誠","FTS","宇都宮",35,25,0,15,20,8,5,null,null,null,108]
[122,"TM5552","小泉 修","NAO","宇都宮",4,null,0,3,8,8,5,null,null,null,28]
[186,"TM4295","小泉 茂","BOSS","宇都宮",1,1,1,7,2,null,null,null,null,null,12]
[132,"TM7832","小倉 広之","ダブルベーグル","小山市",8,6,5,2,2,2,null,null,null,null,25]
[24,"TF7880","小倉 治美","ラフィエスタ","大田原市",12,null,30,10,30,null,30,null,null,null,112]
[291,"TM6497","小池 宏","Team HOWDY","宇都宮",null,null,null,null,2,null,null,null,null,null,2]
[null,null,"小田切 弘","フリー",null,null,null,null,null,null,null,null,null,4,null,4]
[45,"TM7584","小島 崚斗","コマツ硬式テニス部","小山市",null,15,null,null,12,null,45,null,null,null,72]
[87,"TF1904","小嶋 栄美","RIZU","宇都宮",4,null,5,3,2,2,15,null,null,2,33]
[275,"TM9702","小畑 紀之","フィナリスタ","真岡",2,null,1,null,null,null,null,null,null,null,3]
[37,"TF0951","小峯 ひとみ","KTC","下野市",20,1,30,null,12,null,15,null,null,null,78]
[25,"TM6363","小堀 達也","P.J.D","真岡",null,null,70,null,null,null,45,null,null,null,115]
[85,"TF6181","小堀 智美","ウィッチーズテニスクラブ","小山市",12,null,15,null,2,null,5,null,null,null,34]
[291,"TM0786","小野 史裕","Team HOWDY","宇都宮",null,null,null,null,2,null,null,null,null,null,2]
[275,"TM4672","小野崎 康裕","Team HOWDY","宇都宮",null,null,null,1,null,2,null,null,null,null,3]
[275,"TM1550","小野崎 航平","Team HOWDY","宇都宮",null,null,null,1,null,2,null,null,null,null,3]
[191,"TM4628","小野崎 仁紀","NAO","宇都宮",null,null,null,10,null,null,null,null,null,null,10]
[77,"TM4262","小野瀬 帝生","ＨＩＴ","宇都宮",null,1,null,15,30,null,0,null,null,null,46]
[36,"TF4958","小林 かほり","足利ローンテニスクラブ","足利",20,null,null,null,20,12,30,null,null,null,82]
[171,"TF6841","小林 絹代","ミッキー","宇都宮",null,null,2,null,null,null,null,null,null,null,2]
[160,"TF5970","小林 真由美","GTCC","大田原市",null,null,4,2,null,null,null,null,null,null,6]
[70,"TM2462","小林 透","ウィンディ","宇都宮",20,null,5,3,5,2,15,null,null,null,50]
[83,"TF1095","小林 満恵","ローズテニスガーデン","小山市",null,null,15,19,null,null,null,null,null,null,34]
[223,"TM7142","小林 裕幸","県庁テニスクラブ","宇都宮",null,null,0,7,null,null,null,null,null,null,7]
[112,"TF1058","松崎 靖子","ビッグツリー","宇都宮",4,1,5,3,2,null,5,null,null,null,20]
[19,"TM1300","松村 智也","足利ローンテニスクラブ","足利",35,null,30,30,12,20,30,null,null,null,157]
[null,null,"松本 開渡","グラスホッパー","宇都宮",null,null,null,null,null,null,null,null,2,null,2]
[13,"TF2475","松本 恭子","クロスポイント","佐野市",4,30,45,45,20,20,5,null,null,null,169]
[339,"TM4881","松本 修治","RASH","宇都宮",null,null,1,null,null,null,null,null,null,null,1]
[127,"TF8625","松本 智子","ユニティ（ＵＮＴ）","宇都宮",4,null,5,5,null,null,null,null,null,null,14]
[194,"TM2021","松本 徹也","サルトビ","宇都宮",2,null,null,null,8,null,null,null,null,null,10]
[47,"TM6284","松葉 直樹","足利ローンテニスクラブ","足利",12,null,30,15,null,8,5,null,null,null,70]
[141,"TF9802","沼田 久美子","コマツレディース","小山市",null,1,null,null,8,null,null,null,null,null,9]
[7,"TM8166","照井 隆晃","鹿沼市役所","鹿沼",60,null,120,60,12,null,45,null,null,2,299]
[68,"TF1364","上吉原 あい","USUI-PLYWOOD","宇都宮",null,null,null,null,null,null,null,42,null,null,42]
[182,"TM8071","上澤 晃生","CTC","大田原市",4,null,null,null,8,null,null,null,null,null,12]
[171,"TF1000","城内 佳奈江","※未登録","※未登録",null,null,null,null,null,2,null,null,null,null,2]
[103,"TM0337","植竹 徹","足利ローンテニスクラブ","足利",4,null,15,3,null,8,5,null,null,null,35]
[207,"TM1871","新井 祐介","足利ローンテニスクラブ","足利",null,null,null,7,null,2,null,null,null,null,9]
[242,"TM1629","新田 祐輔","ＨＯＮＤＡ Ｔ．Ｃ","宇都宮",null,null,null,5,null,null,null,null,null,null,5]
[28,"TM0112","森下 裕貴","※未登録","※未登録",null,null,null,100,null,null,null,null,null,null,100]
[260,"TM9108","森田 雅文","ビッグツリー","宇都宮",null,null,null,2,2,null,null,null,null,null,4]
[230,"TM9566","森田 晃夫","グラスホッパー","宇都宮",null,6,null,null,null,null,null,null,null,null,6]
[194,"TM0126","深井 由高","ホンダエンジニアリング","宇都宮",2,null,null,null,8,null,null,null,null,null,10]
[171,"TF8787","深町 麻紀子","ミッキー","宇都宮",null,null,null,null,2,null,null,null,null,null,2]
[21,"TF7987","深澤 るみ子","ラフィエスタ","大田原市",20,null,30,30,12,null,30,null,null,null,122]
[189,"TM2653","深澤 哲也","ラフィエスタ","大田原市",null,null,1,3,2,null,5,null,null,null,11]
[159,"TM7139","真中 昭広","dream","小山市",8,null,null,0,8,null,null,null,null,null,16]
[154,"TF0394","真島 幸子","RISING","宇都宮",null,null,null,1,2,null,5,null,null,null,8]
[238,"TM7638","神山 旭","Double Nine","宇都宮",null,1,null,null,null,null,5,null,null,null,6]
[164,"TF6646","神山 厚子","RISING","宇都宮",4,null,null,null,null,null,null,null,null,null,4]
[48,"TM5939","神山 大地","FTS","宇都宮",12,null,15,null,8,20,15,null,null,null,70]
[275,"TM3411","須田 俊行","カフェ・オレ","宇都宮",null,null,1,null,2,null,null,null,null,null,3]
[146,"TF6761","杉山 茉優","※未登録","※未登録",null,null,null,null,null,8,null,null,null,null,8]
[158,"TF4390","杉田 裕子","MTC","宇都宮",null,null,null,7,null,null,null,null,null,null,7]
[146,"TF6450","菅原 夏紀","※未登録","※未登録",null,null,null,null,null,8,null,null,null,null,8]
[9,"TF0094","菅野 喜久江","RIZU","宇都宮",60,null,70,30,50,2,45,null,null,null,257]
[159,"TF8863","菅野 久江","トマト LIS","小山市",4,null,null,3,null,null,null,null,null,null,7]
[54,"TM2414","菅野 尋文","Ｎｅｘｔ．","宇都宮",14,35,9,2,2,null,0,null,null,null,62]
[275,"TM1296","瀬戸 吉彦","花王硬式テニス部","宇都宮",null,null,null,1,2,null,null,null,null,null,3]
[83,"TF0824","瀬野 玉江","サタデー","小山市",null,null,15,19,null,null,null,null,null,null,34]
[171,"TF4248","成井 友紀乃","River","足利",null,null,null,null,null,2,null,null,null,null,2]
[135,"TF3796","星野 朋子","シュガーバンビ","小山市",null,null,null,3,8,null,null,null,null,null,{"$f":"SUM(F324:O324)","v":11}]
[213,"TM2429","星野 佑輔","Ｎｅｘｔ．","宇都宮",null,null,null,null,8,null,null,null,null,null,8]
[193,"TF6815","清水 順子","ローズテニスガーデン","小山市",null,1,null,null,null,null,null,null,null,null,1]
[146,"TF9704","清成 恵子","SMILE","小山市",null,null,null,null,8,null,null,null,null,null,8]
[165,"TF8480","生井 美智子","宇都宮サンテニスクラブ","宇都宮",null,null,null,3,null,null,null,null,null,null,3]
[193,"TF2931","生井 明日香","ノグチテニススクール小山","小山市",null,1,null,null,null,null,null,null,null,null,1]
[97,"TF5439","生沼 伊都子","南河内テニスクラブ","下野市",12,10,5,null,null,null,null,null,null,null,27]
[351,"TM6569","生沼 進","エキサイト","小山市",null,1,0,null,null,null,null,null,null,null,1]
[133,"TF1654","生沼 由美子","VOX","下野市",4,6,null,2,null,null,null,null,null,null,12]
[291,"TM9038","西山 翔","Ｎｅｘｔ．","宇都宮",null,null,null,2,null,null,null,null,null,null,2]
[32,"TM2182","西村 拓也","REDWOOD","小山市",20,null,15,15,12,null,30,null,null,null,92]
[157,"TM5701","西﨑 翔平","VECTOR","宇都宮",1,1,9,2,2,2,null,null,null,null,17]
[36,"TM1327","青木 健登","宇都宮テニスクラブ","宇都宮",null,null,null,null,80,null,null,null,null,null,80]
[291,"TM3456","青木 孝一","フリー","栃木県テニス協会",null,null,null,null,2,null,null,null,null,null,2]
[57,"TF0534","青木 香乃","RIZU","宇都宮",4,1,15,3,12,12,null,null,null,null,47]
[146,"TF5695","斉藤 喜美子","ふぇぶれす","足利",null,null,null,null,null,8,null,null,null,null,8]
[null,null,"斉藤 諒","鹿沼市役所","鹿沼",null,null,null,null,null,null,null,null,null,2,2]
[126,"TM1976","石井 真史","キヤノン","宇都宮",4,null,5,3,2,8,5,null,null,null,27]
[291,"TM8724","石戸 力","Bloom","宇都宮",2,null,null,null,null,null,null,null,null,null,2]
[120,"TM5748","石戸谷 健進","Double Nine","宇都宮",null,null,15,null,8,null,5,null,null,null,28]
[260,"TM6698","石崎 智史","Ｎｅｘｔ．","宇都宮",2,null,null,2,null,null,null,null,null,null,4]
[63,"TF3624","石川 さよみ","足利みなみテニスクラブ","足利",12,6,null,3,null,8,15,null,null,null,44]
[17,"TM8938","石川 祥","足利ローンテニスクラブ","足利",35,null,70,null,50,2,5,null,null,null,162]
[179,"TM1913","石川 晋一郎","NAO","宇都宮",8,1,0,2,2,null,null,null,null,null,13]
[95,"TF0438","石川 正子","トマト LIS","小山市",12,1,5,3,2,null,5,null,null,null,28]
[76,"TF7470","石川 則江","NAO","宇都宮",4,6,9,3,8,8,null,null,null,null,38]
[null,null,"石川 智洋","フリー",null,null,null,null,null,null,null,null,null,null,1,1]
[117,"TF2835","石川 茉奈","NAO","宇都宮",4,6,9,null,null,null,null,null,null,null,19]
[78,"TM8020","石塚 義成","ＹＡＺＩＥＳ","佐野市",4,15,5,3,2,12,5,null,null,null,46]
[102,"TM5556","石塚 智也","NAO","宇都宮",null,null,null,10,12,8,5,null,null,null,35]
[193,"TF3989","石塚 美恵","ＨＩＴ","宇都宮",null,1,null,null,null,null,null,null,null,null,1]
[122,"TM7264","石田 裕也","NAO","宇都宮",4,null,0,3,8,8,5,null,null,null,28]
[154,"TM5811","石島 英明","ダブルベーグル","小山市",8,1,0,7,2,null,null,null,null,null,18]
[63,"TF3135","赤坂 小百合","足利みなみテニスクラブ","足利",12,6,null,3,null,8,15,null,null,null,44]
[238,"TM2542","折原 正亮","G’MAX","栃木市",null,null,null,1,null,5,null,null,null,null,6]
[71,"TM8442","川越 亮","ＨＯＮＤＡ Ｔ．Ｃ","宇都宮",null,null,34,null,null,null,15,null,null,null,49]
[339,"TM7506","川上 瑛太","レモンティー","小山市",null,1,null,null,null,null,null,null,null,null,1]
[67,"TM0282","川上 裕","足利ローンテニスクラブ","足利",null,null,15,3,2,2,30,null,null,null,52]
[58,"TM9618","川瀬 勇輝","NAO","宇都宮",35,null,5,10,null,8,null,null,null,null,58]
[36,"TM5301","川村 京介","宇都宮テニスクラブ","宇都宮",null,null,null,null,80,null,null,null,null,null,80]
[242,"TM7627","川添 章","サトウGTC","宇都宮",null,null,null,null,5,null,null,null,null,null,5]
[74,"TM5009","浅香 確人","Ｎｅｘｔ．","宇都宮",20,null,5,10,8,null,5,null,null,null,48]
[275,"TM7515","染谷 大志","※未登録","※未登録",null,1,null,null,2,null,null,null,null,null,3]
[4,"TF6860","船津 美衣","Ｎｅｘｔ．","宇都宮",160,null,120,64,null,null,30,null,null,null,374]
[154,"TM4831","前田 忍","ダブルベーグル","小山市",4,1,0,null,8,null,5,null,null,null,18]
[165,"TM6761","前田 和也","ＴＦＣインドア","宇都宮",null,null,null,14,null,null,null,null,null,null,14]
[191,"TF2138","倉持 陽子","SUBARU","宇都宮",0,null,2,null,null,null,null,null,null,null,2]
[291,"TM0956","早乙女 達也","みくりやTC","足利",null,null,null,null,null,2,null,null,null,null,2]
[2,"TM4068","相原 一樹","サトウGTC","宇都宮",null,null,null,null,null,null,15,538,null,null,553]
[21,"TM0518","相馬 将紀","ビッグツリー","宇都宮",20,null,null,30,20,2,70,null,null,null,142]
[199,"TM6953","増田 栄二","ビッグツリー","宇都宮",8,null,1,1,null,null,null,null,null,null,10]
[146,"TF1476","増田 紀子","クロスポイント","佐野市",null,null,null,null,8,null,null,null,null,null,8]
[291,"TM4438","村上 真章","Ｎｅｘｔ．","宇都宮",null,null,null,null,2,null,null,null,null,null,2]
[60,"TM5499","多部田 丈予","CTC","大田原市",4,10,34,3,2,null,5,null,null,null,58]
[150,"TM8009","太田 英樹","クロスポイント","佐野市",null,null,null,10,null,8,null,null,null,null,18]
[null,null,"太田 航平","フリー",null,null,null,null,null,null,null,null,null,2,null,2]
[24,"TM5428","太田 真人","コマツ硬式テニス部","小山市",12,15,30,10,12,null,45,null,null,null,124]
[183,"TM3895","太田 和則","GTCC","大田原市",null,null,null,7,5,null,null,null,null,null,12]
[null,null,"大河原 秀之","デクセリアルズ","鹿沼",null,null,null,null,null,null,null,null,1,null,1]
[110,"TF4317","大貫 則子","サンライズ","小山市",4,null,null,null,12,null,5,null,null,null,21]
[223,"TM7911","大貫 大輔","県庁テニスクラブ","宇都宮",null,null,0,7,null,null,null,null,null,null,7]
[171,"TF7089","大橋 亜由美","River","足利",null,null,null,null,null,2,null,null,null,null,2]
[146,"TF9797","大橋 扶結","※未登録","※未登録",null,null,null,null,null,8,null,null,null,null,8]
[270,"TM8066","大高 徹","キマグー","小山市",null,1,1,null,2,null,null,null,null,null,4]
[291,"TM4516","大川 和洋","ふぇぶれす","足利",null,null,null,null,null,2,null,null,null,null,{"$f":"SUM(F388:O388)","v":2}]
[146,"TF2301","大谷 康子","足利みなみテニスクラブ","足利",null,null,null,null,null,8,null,null,null,null,8]
[16,"TF7548","大谷 三枝","大田原レオテニスクラブ","大田原市",20,20,45,null,12,20,30,null,null,null,147]
[102,"TF9865","大塚 てる子","真岡STC","真岡",null,null,19,2,2,null,null,null,null,null,23]
[null,null,"大塚 真穂","Gon Be",null,null,null,null,null,null,null,null,null,null,4,4]
[191,"TM6201","大塚 未宇","Ｎｅｘｔ．","宇都宮",null,null,null,10,null,null,null,null,null,null,10]
[142,"TM3262","大島 義宏","ウィンディ","宇都宮",4,1,0,7,2,2,5,null,null,null,21]
[47,"TF4128","大島 文子","宇都宮サンテニスクラブ","宇都宮",12,null,15,10,null,null,15,null,null,null,52]
[275,"TM9775","大嶋 淳一","エキサイト","小山市",null,1,null,null,2,null,null,null,null,null,3]
[152,"TM1045","大内 敏","カフェ・オレ","宇都宮",8,null,5,null,5,null,null,null,null,null,18]
[13,"TM5403","大和 秀行","足利ローンテニスクラブ","足利",null,null,30,45,30,20,70,null,null,null,195]
[31,"TF7435","滝川 君代","クールライフスポーツ","宇都宮",4,10,15,15,12,12,30,null,null,null,98]
[272,"TM5280","滝川 達也","※未登録","※未登録",null,null,null,3,null,null,null,null,null,null,3]
[240,"TM6286","滝澤 学","キマグー","小山市",0,1,0,null,5,null,null,null,null,null,6]
[193,"TF2324","棚橋 美由紀","結城サンデーズ","小山市",null,1,null,null,null,null,null,null,null,null,1]
[91,"TM4769","谷崎 悠真","キマグー","小山市",12,1,2,4,2,12,5,null,null,null,38]
[291,"TM7424","谷沢 淳","REDWOOD","小山市",2,null,null,null,null,null,null,null,null,null,2]
[136,"TM3698","谷田貝 幹也","フィナリスタ","真岡",null,null,null,2,null,20,null,null,null,null,22]
[null,null,"丹 昌弘","RIZU","宇都宮",null,null,null,null,null,null,null,null,null,1,1]
[111,"TM9785","丹 敏亮","鹿沼市役所","鹿沼",null,null,30,null,null,null,null,null,null,null,30]
[291,"TM2050","炭谷 侑寛","宇都宮大学","宇都宮",2,null,null,null,null,null,null,null,null,null,2]
[127,"TF7319","地土 百恵","ユニティ（ＵＮＴ）","宇都宮",4,null,5,5,null,null,null,null,null,null,14]
[null,null,"竹澤 佳満","鹿沼市役所","鹿沼",null,null,null,null,null,null,null,null,null,1,1]
[339,"TM2388","竹澤 裕都","Ｎｅｘｔ．","宇都宮",null,null,null,1,null,null,null,null,null,null,1]
[100,"TF9964","中井 裕美子","ユニティ（ＵＮＴ）","宇都宮",4,null,17,1,2,null,null,null,null,null,24]
[22,"TF2783","中山 七海","Ｎｅｘｔ．","宇都宮",null,null,120,null,null,null,null,null,null,null,120]
[41,"TF9767","中山 晴美","ラフィエスタ","大田原市",20,null,15,null,20,null,15,null,null,null,70]
[40,"TF7102","中川 尚子","宇都宮サンテニスクラブ","宇都宮",4,1,30,10,12,null,15,null,null,null,72]
[337,"TM0641","中川 誠仁","ＴＦＣインドア","宇都宮",1,null,1,null,null,null,null,null,null,null,2]
[113,"TF4334","中村 みやび","RISING","宇都宮",null,null,19,null,null,null,null,null,null,null,19]
[180,"TM4903","中村 公星","ロイヤルテニスクラブ","宇都宮",null,null,null,null,12,null,null,null,null,null,12]
[260,"TM0741","中村 雄介","※未登録","※未登録",null,null,null,2,2,null,null,null,null,null,4]
[146,"TF0157","中塚 萌香","※未登録","※未登録",null,null,null,null,null,8,null,null,null,null,8]
[171,"TF9656","中島 千尋","※未登録","※未登録",null,null,null,null,2,null,null,null,null,null,2]
[291,"TM3920","中島 洋一","ジャルダン","足利",null,null,null,null,null,2,null,null,null,null,2]
[null,null,"中野 吏紗","JAしもつけ",null,null,null,null,null,null,null,null,null,null,1,1]
[85,"TM3517","仲澤 聖人","ウィンディ","宇都宮",null,15,null,14,8,null,5,null,null,null,42]
[201,"TM6774","朝倉 規雄","ＳＢＴＣ","宇都宮",2,6,null,2,null,null,null,null,null,null,10]
[128,"TM4587","町井 浩美","ウィンディ","宇都宮",4,6,1,10,null,5,null,null,null,null,26]
[null,null,"長岡 大介","鹿沼市役所","鹿沼",null,null,null,null,null,null,null,null,null,1,1]
[105,"TF7954","長山 亜紀子","ユニティ（ＵＮＴ）","宇都宮",4,null,15,3,null,null,null,null,2,null,24]
[131,"TM3529","長島 成司","グラスホッパー","宇都宮",14,6,1,2,2,null,null,null,null,null,25]
[226,"TM1611","長浜 拓","Team HOWDY","宇都宮",null,null,2,5,null,null,null,null,null,null,7]
[272,"TM9636","直井 武雄","（株）パイオラックス","真岡",null,null,null,3,null,null,null,null,null,null,3]
[136,"TF4661","陳之内 康子","FAIR WIND","宇都宮",4,null,null,7,null,null,null,null,null,null,11]
[29,"TM9808","津浦 隆之","フィナリスタ","真岡",null,null,45,30,20,null,5,null,null,null,100]
[156,"TF9885","塚原 ひとみ","VOX","下野市",4,null,1,1,2,null,null,null,null,null,8]
[141,"TF4899","坪井 美佳","ユニティ（ＵＮＴ）","宇都宮",null,1,null,null,8,null,null,null,null,null,9]
[53,"TM9810","天海 遥","宇都宮大学","宇都宮",12,null,null,null,null,50,null,null,null,null,62]
[98,"TF5335","田口 美由紀","シュガーバンビ","小山市",4,null,null,10,8,null,5,null,null,null,27]
[106,"TM3616","田村 憲一","足利ローンテニスクラブ","足利",4,6,0,15,null,8,null,null,null,null,33]
[115,"TF6842","田代 泉","GTCC","大田原市",null,null,5,14,null,null,null,null,null,null,19]
[125,"TM1747","田島 基豪","アキレス","足利",12,null,null,7,null,8,null,null,null,null,27]
[82,"TM1395","田島 孝悟","佐野サンライズ","佐野市",4,15,5,3,null,12,5,null,null,null,44]
[165,"TF0695","田那部 久美子","コマツレディース","小山市",null,null,null,3,null,null,null,null,null,null,3]
[null,null,"田内 宏道","ユニティ（ＵＮＴ）","宇都宮",null,null,null,null,null,null,null,null,4,null,4]
[222,"TM8324","田部井 究也","足利ローンテニスクラブ","足利",null,null,null,7,null,null,null,null,null,null,7]
[154,"TF0036","斗光 操子","ﾁｰﾑ2001","小山市",null,null,null,1,2,null,5,null,null,null,8]
[353,"TM4218","渡部 英明","Bloom","宇都宮",0,null,0,1,null,null,null,null,null,null,1]
[20,"TM7576","渡辺 啓太","Ｎｅｘｔ．","宇都宮",20,60,45,10,8,null,5,null,null,null,148]
[339,"TM8370","渡辺 友弘","富士通","小山市",null,1,null,null,null,null,null,null,null,null,1]
[41,"TF0513","渡邊 千鶴","RIZU","宇都宮",20,null,15,null,20,null,15,null,2,null,72]
[44,"TM5390","渡邊 隆典","RIZU","宇都宮",12,1,15,10,12,8,15,null,null,null,73]
[129,"TF8508","島貫 舞","アップルテニスチーム","那須塩原",4,null,9,null,null,null,null,null,null,null,13]
[171,"TF1449","湯橋 栄枝","※未登録","※未登録",null,null,null,2,null,null,null,null,null,null,{"$f":"SUM(F452:O452)","v":2}]
[291,"TM0439","湯原 正籍","宇都宮サンテニスクラブ","宇都宮",null,null,null,null,2,null,null,null,null,null,2]
[241,"TM8865","藤原 篤","グラスホッパー","宇都宮",null,null,0,2,2,2,null,null,null,null,6]
[10,"TM6544","藤原 弥","チームU&T","足利",null,null,200,null,null,null,null,21,null,null,221]
[52,"TF4103","藤江 喜恵子","RISING","宇都宮",12,null,null,10,12,12,5,null,null,null,51]
[3,"TM4884","藤倉 俊一","ＬＯＶＥ・ＡＬＬ（ラヴ・オール）","足利",12,null,45,15,20,null,200,79,null,null,371]
[16,"TM0596","藤倉 諒","VOX","下野市",60,null,70,45,null,null,5,null,1,2,183]
[9,"TF3593","藤田 元","みはらレディース","大田原市",60,null,70,30,50,2,45,null,null,null,257]
[19,"TF3991","藤田 直美","amigoT.C","大田原市",12,6,30,15,12,12,45,null,null,null,132]
[140,"TF2484","藤澤 佳代子","ラフィエスタ","大田原市",null,null,9,null,null,null,null,null,null,null,9]
[124,"TM4134","藤澤 義仁","ダブルベーグル","小山市",4,1,5,3,2,8,5,null,null,null,28]
[62,"TM3094","藤澤 柾輝","ＨＩＴ","宇都宮",12,null,30,null,null,null,15,null,null,null,57]
[260,"TM8461","陶山 恭平","宇都宮大学","宇都宮",2,null,null,null,null,2,null,null,null,null,4]
[117,"TM9136","日吉 智也","宇都宮大学","宇都宮",12,null,null,null,null,12,5,null,null,null,29]
[230,"TM0228","日向野 貴","TEAM SWY","栃木市",null,6,null,null,null,null,null,null,null,null,6]
[242,"TM7587","日向野 誠基","Ｎｅｘｔ．","宇都宮",null,null,5,null,null,null,null,null,null,null,5]
[146,"TM3872","日比野 真","チームU&T","足利",4,null,15,null,null,null,null,null,null,null,19]
[171,"TF5054","韮塚 洋子","River","足利",null,null,null,null,null,2,null,null,null,null,2]
[null,null,"梅山 秀紀","JAしもつけ",null,null,null,null,null,null,null,null,null,null,1,1]
[27,"TF0150","梅津 華","amigoT.C","大田原市",null,6,30,15,null,12,45,null,null,null,108]
[52,"TM7036","梅津 京","CTC","大田原市",12,10,15,3,8,null,15,null,null,null,63]
[29,"TF9296","萩原 美保子","宇都宮サンテニスクラブ","宇都宮",20,20,30,3,null,null,30,null,null,null,103]
[170,"TM1531","萩原 稔","ウィンディ","宇都宮",8,6,null,null,null,null,null,null,null,null,14]
[143,"TM9092","萩原 優幸","ＨＯＮＤＡ Ｔ．Ｃ","宇都宮",null,null,2,3,null,null,15,null,null,null,20]
[167,"TM0701","柏崎 秀明","River","足利",4,10,null,null,null,null,null,null,null,null,14]
[291,"TM3607","粕尾 栄之","G’MAX","栃木市",null,null,null,null,2,null,null,null,null,null,2]
[218,"TM9511","薄井 啓輔","LEX","宇都宮",8,null,0,null,null,null,null,null,8,8,24]
[260,"TM3802","薄木 直哉","ダブルベーグル","小山市",null,null,null,2,2,null,null,null,null,null,4]
[41,"TM2431","迫田 宗達","P.J.D","真岡",null,null,0,null,null,30,45,null,null,null,75]
[183,"TM1422","八木澤 和久","GTCC","大田原市",null,null,null,7,5,null,null,null,null,null,12]
[291,"TM6420","半田 守可","RIZU","宇都宮",null,null,null,null,2,null,null,null,null,null,2]
[95,"TF6155","板東 裕美子","ローズテニスガーデン","小山市",12,1,5,3,2,null,5,null,null,null,28]
[48,"TF1256","飯塚 朋美","宇都宮サンテニスクラブ","宇都宮",12,1,5,15,2,2,15,null,null,null,52]
[69,"TF5763","飯島 正子","コマツレディース","小山市",4,null,5,3,null,null,30,null,null,null,42]
[291,"TM7859","肥後 正弓","ホンダエンジニアリング","宇都宮",2,null,null,null,null,null,null,null,null,null,2]
[51,"TF4972","柊木 卓子","ＬＯＶＥ・ＡＬＬ（ラヴ・オール）","足利",12,6,15,3,null,null,15,null,null,null,51]
[108,"TM2474","膝附 宥太","BEST","栃木市",4,null,null,15,12,null,null,null,null,null,31]
[7,"TF2844","菱沼 礼子","FTS","宇都宮",35,10,45,30,20,null,120,null,null,null,260]
[63,"TF9038","富井 浩枝","リバティー","宇都宮",12,null,5,10,2,null,15,null,null,null,44]
[43,"TF3885","富川 佳代子","FTC","矢板市",12,55,null,0,null,null,null,null,null,null,67]
[153,"TM5014","附田 昌大","キヤノン","宇都宮",null,null,null,3,2,8,5,null,null,null,18]
[35,"TM6474","服部 宏史","カフェ・オレ","宇都宮",12,10,15,10,5,null,30,null,null,null,82]
[193,"TF5767","服部 淳子","RISING","宇都宮",null,null,null,1,null,null,null,null,null,null,1]
[53,"TF7727","福井 寿美子","みかも山Ｇ.Ｔ.Ｃ","佐野市",12,6,5,3,null,20,5,null,null,null,51]
[118,"TM9799","福永 徳仁","レモンティー","小山市",4,1,7,null,null,2,15,null,null,null,29]
[18,"TF9180","福岡 幸江","足利ローンテニスクラブ","足利",4,30,45,15,20,12,15,null,null,null,141]
[242,"TM2147","福田 健一","足利ローンテニスクラブ","足利",null,null,null,null,null,5,null,null,null,null,5]
[25,"TF5284","福田 澄子","FTS","宇都宮",20,20,30,null,12,30,0,null,null,null,112]
[230,"TM7790","福田 雪矢","ダブルベーグル","小山市",null,6,null,null,null,null,null,null,null,null,6]
[291,"TM7089","福田 拓矢","※未登録","※未登録",null,null,null,null,2,null,null,null,null,null,2]
[176,"TM6649","福田 裕之","Double Nine","宇都宮",null,null,null,null,8,null,5,null,null,null,13]
[31,"TM4469","福田 隆一","FTS","宇都宮",35,25,0,null,20,8,5,null,null,null,93]
[6,"TM2477","福田 諒平","ＨＩＴ","宇都宮",160,null,30,100,null,null,45,null,null,null,335]
[104,"TM2896","平野 晴大","Bloom","宇都宮",14,null,9,10,null,null,null,null,null,null,33]
[171,"TF5583","平野 有芽","LEX","宇都宮",null,null,2,null,null,null,null,null,null,null,2]
[137,"TF8891","平野 里佳","VOX","下野市",4,1,2,2,null,2,null,null,null,null,11]
[151,"TM8888","米山 裕弥","キマグー","小山市",null,1,null,null,null,12,5,null,null,null,18]
[191,"TF1291","片山 智子","SUBARU","宇都宮",0,null,2,null,null,null,null,null,1,null,3]
[160,"TF2891","片野 優子","ランチBOX","真岡",4,null,null,null,2,null,null,null,null,null,6]
[165,"TF2750","豊田 浩世","ダブルベーグル","小山市",null,null,null,3,null,null,null,null,null,null,3]
[102,"TF2427","豊田 仁子","ＴＡテニス","宇都宮",null,null,19,2,2,null,null,null,null,null,23]
[218,"TM4450","北崎 賢","REDWOOD","小山市",8,null,0,null,null,null,null,null,null,null,8]
[291,"TM0801","北林 優","ジャルダン","足利",null,null,null,null,null,2,null,null,null,null,2]
[93,"TM9055","北澤 良","レモンティー","小山市",4,1,7,2,5,2,15,null,null,null,36]
[339,"TM8628","牧山 真之","富士通","小山市",null,1,null,null,null,null,null,null,null,null,{"$f":"SUM(F516:O516)","v":1}]
[171,"TF5483","牧島 萌花","LEX","宇都宮",null,null,2,null,null,null,null,null,null,null,2]
[null,null,"牧島 萌花","Gon Be",null,null,null,null,null,null,null,null,null,null,4,4]
[111,"TM3902","牧野 圭一郎","VOX","下野市",null,null,30,null,null,null,null,null,null,null,30]
[55,"TF2491","堀 菜月","足利ローンテニスクラブ","足利",null,null,null,null,20,null,30,null,null,null,50]
[275,"TM0293","堀越 基好","みくりやTC","足利",1,null,null,null,null,2,null,null,null,null,3]
[169,"TF7374","堀越 和子","HTC","真岡",0,null,null,1,2,null,null,null,null,null,3]
[291,"TM0562","堀切 久寛","Ｎｅｘｔ．","宇都宮",2,null,null,null,null,null,null,null,null,null,2]
[148,"TM5728","木村 昌幸","グラスホッパー","宇都宮",14,null,1,2,null,2,null,null,null,null,19]
[92,"TF9292","木村 千晴","アップルテニスチーム","那須塩原",4,null,9,null,null,null,15,null,null,null,28]
[230,"TM9840","木村 博昭","ダブルベーグル","小山市",null,6,null,null,null,null,null,null,null,null,6]
[230,"TM7774","木村 和司","エンデバーテニスクラブ","小山市",null,6,null,null,null,null,null,null,null,null,6]
[270,"TM5115","野口 朔太郎","VOX","下野市",1,null,null,1,null,2,null,null,null,null,4]
[11,"TM5750","野口 将矢","River","足利",null,null,null,null,8,80,120,null,null,null,208]
[259,"TM3987","野口 祐二","南河内テニスクラブ","下野市",1,1,0,1,null,2,null,null,null,null,5]
[171,"TF3592","野口 洋子","ユニティ（ＵＮＴ）","宇都宮",null,null,null,2,null,null,null,null,null,null,2]
[48,"TF4250","野中　 かな江","ユニティ（ＵＮＴ）","宇都宮",12,1,5,15,2,2,15,null,null,null,52]
[28,"TF4139","野中 瑞姫","Ｎｅｘｔ．","宇都宮",null,null,45,null,8,8,45,null,null,null,106]
[45,"TF4869","野澤 英恵","コマツレディース","小山市",null,null,null,null,2,20,45,null,null,null,67]
[167,"TM4131","矢口 聡","栃木銀行","宇都宮",4,null,null,10,null,null,null,null,null,null,14]
[193,"TF0837","矢治 あつ子","FAIR WIND","宇都宮",null,null,null,1,null,null,null,null,null,null,1]
[114,"TM8893","矢田部 暁良志","ウィンディ","宇都宮",20,null,5,null,5,null,null,null,null,null,30]
[291,"TM9494","矢田部 直哉","ウィンディ","宇都宮",2,null,null,null,null,null,null,null,null,null,2]
[260,"TM6465","矢田部 隼哉","※未登録","※未登録",2,null,null,null,2,null,null,null,null,null,4]
[198,"TM0860","矢木田 義人","キヤノン","宇都宮",null,null,5,null,null,null,5,null,null,null,10]
[83,"TM5114","柳 敏幸","足利ローンテニスクラブ","足利",4,null,15,15,2,2,5,null,null,null,43]
[291,"TM6982","柳久保 友貴","※未登録","※未登録",null,null,null,null,null,2,null,null,null,null,2]
[226,"TM2884","柳田 一真","フィナリスタ","真岡",null,null,null,null,5,2,null,null,null,null,7]
[6,"TF7576","唯岡 千紘","コマツレディース","小山市",60,null,70,10,80,20,45,null,null,null,285]
[291,"TM8084","有田 光佑","花王硬式テニス部","宇都宮",null,null,null,null,2,null,null,null,null,null,2]
[1,"TM3454","柚木 武","Yuzu TS","真岡",null,null,null,null,null,null,null,955,null,null,955]
[78,"TF2818","落合 真由美","UIテニスクラブ","鹿沼",4,1,0,3,2,12,15,null,4,null,41]
[64,"TM1975","落合 聡","宇都宮サンテニスクラブ","宇都宮",null,null,null,30,20,null,5,null,null,null,55]
[50,"TM9743","落合 惇","NAO","宇都宮",35,null,5,10,2,8,5,null,null,null,65]
[95,"TM2885","落合 亮太","昭和電工マスターズ","小山市",null,null,5,null,null,30,null,null,null,null,35]
[242,"TM0727","立溝 令登","※未登録","※未登録",null,null,null,null,null,5,null,null,null,null,5]
[339,"TM3377","劉 生浩","※未登録","※未登録",null,null,null,1,null,null,null,null,null,null,1]
[97,"TM2889","両角 賢一郎","ＨＯＮＤＡ Ｔ．Ｃ","宇都宮",20,null,15,null,null,null,null,null,null,null,35]
[73,"TF4346","鈴木 貴子","ＬＯＶＥ・ＡＬＬ（ラヴ・オール）","足利",20,null,null,null,2,12,5,null,null,null,39]
[38,"TM4814","鈴木 宏征","カフェ・オレ","宇都宮",20,10,5,3,12,null,30,null,null,null,80]
[256,"TM5789","鈴木 剛俊","River","足利",1,null,null,2,null,2,null,null,null,null,5]
[337,"TM5044","鈴木 克彰","G’MAX","栃木市",1,null,1,null,null,null,null,null,null,null,2]
[null,null,"鈴木 嗣人","デクセリアルズ","鹿沼",null,null,null,null,null,null,null,null,1,null,1]
[291,"TM2303","鈴木 淑史","VECTOR","宇都宮",null,null,null,null,2,null,null,null,null,null,2]
[213,"TM9502","鈴木 俊寛","泉テニスクラブ（ITC)","矢板市",null,null,null,null,8,null,null,null,null,null,8]
[134,"TM0991","鈴木 俊佑","Double Nine","宇都宮",null,null,15,null,8,null,null,null,null,null,23]
[null,null,"鈴木 淳","UIテニスクラブ","鹿沼",null,null,null,null,null,null,null,null,2,null,2]
[63,"TM0869","鈴木 渉","泉テニスクラブ（ITC)","矢板市",4,null,null,15,8,null,30,null,null,null,57]
[202,"TM6354","鈴木 展明","足利ローンテニスクラブ","足利",4,1,null,3,null,2,null,null,null,null,10]
[213,"TM7913","鈴木 芳人","ウィンディ","宇都宮",null,null,null,null,8,null,null,null,null,null,8]
[87,"TF3004","鈴木 満里子","RIZU","宇都宮",4,null,5,3,2,2,15,null,null,2,33]
[213,"TM0600","鈴木 和彦","ＬＯＶＥ・ＡＬＬ（ラヴ・オール）","足利",null,null,null,null,null,8,null,null,null,null,8]
[130,"TF0204","和久 有里","Team HOWDY","宇都宮",null,null,0,null,8,null,5,null,null,null,13]
[111,"TF3639","哘崎 恵子","RISING","宇都宮",4,1,15,null,null,null,null,null,null,null,20]
[33,"TM8311","廣田 晴紀","dream","小山市",20,10,5,3,5,12,30,null,null,null,85]
[69,"TM5088","廣田 晴久","※未登録","※未登録",null,null,null,null,null,50,null,null,null,null,50]
[339,"TM2579","櫻井 智基","※未登録","※未登録",null,null,null,1,null,null,null,null,null,null,1]
[180,"TM7054","齋藤 貴紀","ビッグツリー","宇都宮",12,null,null,null,null,null,null,null,null,null,12]
[65,"TM2357","齋藤 聡","ＬＯＶＥ・ＡＬＬ（ラヴ・オール）","足利",2,6,30,null,12,null,5,null,null,null,55]
[16,"TF3512","齋藤 敦子","amigoT.C","大田原市",20,20,45,null,12,20,30,null,null,null,147]
[275,"TM4195","齋藤 裕茂","VECTOR","宇都宮",null,1,null,null,null,2,null,null,null,null,3]
[291,"TM1388","齋藤 頌太","※未登録","※未登録",null,null,null,null,2,null,null,null,null,null,2]
[90,"TF7434","纓坂 千恵実","RISING","宇都宮",4,null,15,3,8,null,0,null,null,null,30]
[291,"TM0582","髙田 和男","ふぇぶれす","足利",null,null,null,null,null,2,null,null,null,null,2]
[174,"TM1591","髙野 将義","VECTOR","宇都宮",1,1,null,7,5,null,null,null,null,null,{"$f":"SUM(F580:O580)","v":14}]

{"sheet":"名簿","index":4,"n_rows":742,"n_cols":3,"rows_kept":742,"cut":false,"hidden":true,"merged":[]}
[]
[null,"ソンバット スリヤチャン","みくりやTC"]
[null,"阿久津 光範","帝京大学"]
[null,"阿久津 精一","UIテニスクラブ"]
[null,"阿久津 裕子","ユニティ（ＵＮＴ）"]
[null,"阿久津 裕汰","サトウGTC"]
[null,"阿久津 亮汰","SUBARU"]
[null,"阿部 加代子","足利みなみテニスクラブ"]
[null,"阿部 喜亮","巌翠テニスクラブ"]
[null,"阿部 隼也","VECTOR"]
[null,"阿部 文子","ビッグツリー"]
[null,"阿部 祐理子","P.J.D"]
[null,"綾目 徹也","レモンティー"]
[null,"粟野 裕都","帝京大学"]
[null,"安生 克典","FTS"]
[null,"伊東 里英","プリティスプリームス"]
[null,"伊東 和輝","Ｎｅｘｔ．"]
[null,"伊藤 健史","ダブルベーグル"]
[null,"伊藤 晃洋","泉テニスクラブ（ITC)"]
[null,"依田 克則","ウイングTC"]
[null,"依田 由美子","フレンドテニスクラブ"]
[null,"依田 和也","鹿沼西中"]
[null,"為我井 義和","dream"]
[null,"井桁 修","みくりやTC"]
[null,"井上 勇","サトウGTC"]
[null,"井田 義明","キヤノン"]
[null,"磯貝 美恵子","クロスポイント"]
[null,"磯山 有美","ユニティ（ＵＮＴ）"]
[null,"磯部 みよ子","TEAM SWY"]
[null,"稲見 正雄","※未登録"]
[null,"稲川 紀子","真岡STC"]
[null,"稲田 諭","コマツ硬式テニス部"]
[null,"羽鳥 賢治","ローズテニスガーデン"]
[null,"鵜養 知秀","サトウGTC"]
[null,"鵜澤 広也","ＨＯＮＤＡ Ｔ．Ｃ"]
[null,"浦部 貴史","チームU&T"]
[null,"浦部 俊之","チームU&T"]
[null,"永井 義佑","カフェ・オレ"]
[null,"永井 千尋","RIZU"]
[null,"永沼 俊道","(爆)TC"]
[null,"永島 圭祐","BEST"]
[null,"益子 きく子","ミッキー"]
[null,"益田 敬明","Double Nine"]
[null,"越智 大輔","キヤノン"]
[null,"遠藤 伸尭","宇都宮大学"]
[null,"遠藤 律子","足利みなみテニスクラブ"]
[null,"塩野目 弘人","HTC"]
[null,"塩澤 美幸","FTS"]
[null,"奥山 敬一郎","エンデバーテニスクラブ"]
[null,"奥山 直大","足利ローンテニスクラブ"]
[null,"奥村 遊","ＫＡＴＡ"]
[null,"横島 雅代","昭和電工マスターズ"]
[null,"横尾 恭栄","ビッグツリー"]
[null,"横尾 良太","JAしもつけ"]
[null,"岡田 遥平","レモンティー"]
[null,"岡島 弘幸","ジャルダン"]
[null,"岡部 昭男","足利ローンテニスクラブ"]
[null,"岡本 隆志","ＳＢＴＣ"]
[null,"沖田 恵子","RIZU"]
[null,"荻原 俊行","大昌電子テニスクラブ"]
[null,"荻谷 健人","※未登録"]
[null,"荻野 怜子","ミッキー"]
[null,"下村 卓也","SUBARU"]
[null,"加藤 貴哉","鹿沼市役所"]
[null,"加藤 広之","キヤノン"]
[null,"加藤 秀昭","P.J.D"]
[null,"加藤 成利","(爆)TC"]
[null,"加藤 智之","Ｎｅｘｔ．"]
[null,"加藤 望未","宇都宮大学"]
[null,"嘉沼 康佑","※未登録"]
[null,"歌川 寛得","ビッグツリー"]
[null,"河合 亮","Bloom"]
[null,"河上 初美","ロイヤルテニスクラブ"]
[null,"河内 良太","足利ローンテニスクラブ"]
[null,"河内 良容","River"]
[null,"河野 知紘","フリー"]
[null,"花田 圭子","RISING"]
[null,"改田 敬一","足利ローンテニスクラブ"]
[null,"海老原 亮","フィナリスタ"]
[null,"海老沼 悟志","キマグー"]
[null,"外山 秀樹","エキサイト"]
[null,"外池 勝次","UIテニスクラブ"]
[null,"垣内 義則","サトウGTC"]
[null,"垣木 智行","HTC"]
[null,"角田 知久","Ｎｅｘｔ．"]
[null,"笠原 空也","REDWOOD"]
[null,"笠松 創太","ＳＢＴＣ"]
[null,"笠倉 一寿","dream"]
[null,"笠倉 恵","ローズテニスガーデン"]
[null,"鎌形 諒太","Bloom"]
[null,"刈田 琴乃","ＩＵＨＷ"]
[null,"乾 裕子","FAIR WIND"]
[null,"関 宏隆","ローズテニスガーデン"]
[null,"関 克之","足利ローンテニスクラブ"]
[null,"関口 吉弘","クロスポイント"]
[null,"関口 直也","Bloom"]
[null,"関口 勇二","BEST"]
[null,"関根 好克","ローズテニスガーデン"]
[null,"関根 和彦","ビックサーズデイ"]
[null,"関本 悟","To-Be"]
[null,"関亦 英士","フィナリスタ"]
[null,"関野 将司","P.J.D"]
[null,"舘脇 浩子","GTCC"]
[null,"岸 喜代子","つばめがえし"]
[null,"岩永 卓也","ホンダエンジニアリング"]
[null,"岩見 英恵","GTCC"]
[null,"岩崎 享子","リバティー"]
[null,"岩崎 江美子","ローズテニスガーデン"]
[null,"岩出 龍彦","SUBARU"]
[null,"岩垂 桃香","FAIR WIND"]
[null,"岩田 真彩","※未登録"]
[null,"岩渕 光生","ＨＩＴ"]
[null,"亀井 秀造","宇都宮サンテニスクラブ"]
[null,"亀井 泰造","アウリンTC"]
[null,"亀田 飛翔","River"]
[null,"儀賀 章仁","ホンダエンジニアリング"]
[null,"菊地 直行","ｱｲﾎﾞさくら"]
[null,"菊地 廉","足利ローンテニスクラブ"]
[null,"菊地 廣光","ふぇぶれす"]
[null,"菊池 健夫","Team HOWDY"]
[null,"吉岡 洋","SUBARU"]
[null,"吉原 卓未","カフェ・オレ"]
[null,"吉成 美穂子","ミッキー"]
[null,"吉川 史哲","ＨＯＮＤＡ Ｔ．Ｃ"]
[null,"吉川 智也","Team HOWDY"]
[null,"吉川 典男","ウィンディ"]
[null,"吉村 雄太","サトウGTC"]
[null,"吉田 巧","宇都宮テニスクラブ"]
[null,"吉田 雅俊","足利銀行"]
[null,"吉田 幸子","FTS"]
[null,"吉田 真志","ウィンディ"]
[null,"吉田 文彦","みくりやTC"]
[null,"吉田 麻美","VOX"]
[null,"吉澤 優樹","カフェ・オレ"]
[null,"久保 義彦","ウィッチーズテニスクラブ"]
[null,"久保田 桂輔","足利ローンテニスクラブ"]
[null,"久保田 昌也","ウィンディ"]
[null,"久保田 文一","足利ローンテニスクラブ"]
[null,"久保田 芳久","ウィンディ"]
[null,"宮 幸子","amigoT.C"]
[null,"宮下 とも子","ローズテニスガーデン"]
[null,"宮森 智美","TCA"]
[null,"宮川 宣子","ローズテニスガーデン"]
[null,"宮前 将","セイシェルテニスクラブ"]
[null,"宮部 正章","宇都宮サンテニスクラブ"]
[null,"宮澤 保志","足利ローンテニスクラブ"]
[null,"去田 巧","ＬＯＶＥ・ＡＬＬ（ラヴ・オール）"]
[null,"橋本 樹","VOX"]
[null,"橋本 直樹","Bloom"]
[null,"橋本 美樹","Space 135"]
[null,"饗庭 洋行","To-Be"]
[null,"玉野 奏海","Ｎｅｘｔ．"]
[null,"近藤 敬介","ＬＯＶＥ・ＡＬＬ（ラヴ・オール）"]
[null,"近藤 友貴","Bloom"]
[null,"金井 耀平","ＨＯＮＤＡ Ｔ．Ｃ"]
[null,"金久保 順子","P.J.D"]
[null,"金山 道生","ＨＯＮＤＡ Ｔ．Ｃ"]
[null,"金子 衛","VECTOR"]
[null,"金子 剛","サンデーテニスクラブ"]
[null,"金子 瑞騎","VOX"]
[null,"金子 正二","足利ローンテニスクラブ"]
[null,"金子 聡","ダブルベーグル"]
[null,"金子 隆行","県庁テニスクラブ"]
[null,"金子 諒","Gon Be"]
[null,"金敷 美由紀","BEST"]
[null,"駒場 道久","サトウGTC"]
[null,"櫛下町 光哉","BEST"]
[null,"粂川 直美","SMILE"]
[null,"桑名 一瑠","フリー"]
[null,"桑野 真由子","SMILE"]
[null,"桑野 遼馬","VOX"]
[null,"穴山 律子","ラフィエスタ"]
[null,"穴山 榮人","ラフィエスタ"]
[null,"鍵山 博子","宇都宮サンテニスクラブ"]
[null,"原 陽一","※未登録"]
[null,"原田 照美","GTCC"]
[null,"古舘 海生","※未登録"]
[null,"古森 健太","※未登録"]
[null,"古内 諒","佐野市役所"]
[null,"戸松 博","ＳＢＴＣ"]
[null,"戸倉 香奈恵","※未登録"]
[null,"戸田 真弘","アキレス"]
[null,"狐塚 美佐子","富士通"]
[null,"五味 泉","VOX"]
[null,"後藤 愛子","HTC"]
[null,"後藤 英美","アキレス"]
[null,"後藤 久恵","KTC"]
[null,"後藤 景子","ユニティ（ＵＮＴ）"]
[null,"後藤 孝文","フィナリスタ"]
[null,"後藤 崇","HTC"]
[null,"向井原 宏","デクセリアルズ"]
[null,"工藤 千寿","富士通"]
[null,"工藤 敦子","エンデバーテニスクラブ"]
[null,"広瀬 慎也","dream"]
[null,"江崎 慶子","ラフィエスタ"]
[null,"江上 貴史","ウィンディ"]
[null,"江田 秀樹","サトウGTC"]
[null,"江連 雅晴","県庁テニスクラブ"]
[null,"溝畑 賢","ＳＢＴＣ"]
[null,"荒井 健一","アップルテニスチーム"]
[null,"荒井 宏道","ダブルベーグル"]
[null,"荒井 太希","小山ジュニア"]
[null,"荒井 哲也","レモンティー"]
[null,"荒井 龍彦","ｱｲﾎﾞさくら"]
[null,"荒木 浩二","自治医科大学教職員テニスクラブ"]
[null,"荒木 裕子","フレンドテニスクラブ"]
[null,"行成 大樹","キヤノン"]
[null,"高久 典昭","宇都宮サンテニスクラブ"]
[null,"高橋 賢都","※未登録"]
[null,"高橋 香澄","※未登録"]
[null,"高橋 紗佳","amigoT.C"]
[null,"高橋 人史","FTS"]
[null,"高橋 晴夫","ｱｲﾎﾞさくら"]
[null,"高橋 忠伸","HTC"]
[null,"高橋 優之","※未登録"]
[null,"高橋 由美子","HTC"]
[null,"高橋 利通","ウイングTC"]
[null,"高際 達也","みくりやTC"]
[null,"高崎 直子","Space 135"]
[null,"高山 禎唯","Ｎｅｘｔ．"]
[null,"高松 寛行","サルトビ"]
[null,"高松 勇輝","ロイヤルテニスクラブ"]
[null,"高松 和","コマツレディース"]
[null,"高村 英俊","Hinata"]
[null,"高村 充","BOSS"]
[null,"高村 直人","ＨＩＴ"]
[null,"高村 裕","Double Nine"]
[null,"高田 恵美","エキサイト"]
[null,"高島 伸枝","KTC"]
[null,"高木 浩史","フリー"]
[null,"国分 文子","BURJ"]
[null,"黒沼 愛生","JKテニスガーデン"]
[null,"根本 昌幸","Double Nine"]
[null,"根本 誠也","宇都宮大学"]
[null,"佐々木 智子","つばめがえし"]
[null,"佐山 幸子","エンデバーテニスクラブ"]
[null,"佐山 真帆","River"]
[null,"佐渡友 茂子","GTCC"]
[null,"佐藤 希星","サトウGTC"]
[null,"佐藤 巧","To-Be"]
[null,"佐藤 淳子","BURJ"]
[null,"佐藤 彰洋","Ｎｅｘｔ．"]
[null,"佐藤 慎矢","クロスポイント"]
[null,"佐藤 千恵子","エンデバーテニスクラブ"]
[null,"佐藤 大耀","サトウGTC"]
[null,"佐藤 典子","ユニティ（ＵＮＴ）"]
[null,"佐藤 美枝子","みかも山Ｇ.Ｔ.Ｃ"]
[null,"佐藤 文泰","泉テニスクラブ（ITC)"]
[null,"佐藤 優次","帝京大学"]
[null,"佐藤 龍","Bloom"]
[null,"最上 修平","ウィッチーズテニスクラブ"]
[null,"斎藤 慎介","Bloom"]
[null,"斎藤 優斗","To-Be"]
[null,"坂寄 拓夢","Double Nine"]
[null,"坂原 学","足利ローンテニスクラブ"]
[null,"坂口 詩織","※未登録"]
[null,"坂本 光広","FTS"]
[null,"坂本 志織","フリー"]
[null,"坂本 朋子","パワフルテニスクラブ"]
[null,"坂本 昴士","宇都宮大学"]
[null,"榊原 莉穂","JAしもつけ"]
[null,"三浦 郁子","ミッキー"]
[null,"三浦 達也","HTC"]
[null,"三浦 敦朗","足利ローンテニスクラブ"]
[null,"三笠 陽子","ラフィエスタ"]
[null,"三橋 航","クロスポイント"]
[null,"三森 雅子","宇都宮サンテニスクラブ"]
[null,"三鍋 晴夫","KTC"]
[null,"三條目 旬","キマグー"]
[null,"山下 隼","サルトビ"]
[null,"山下 隆吾","ホンダエンジニアリング"]
[null,"山戸 大輔","サルトビ"]
[null,"山口 悦子","宇都宮サンテニスクラブ"]
[null,"山口 勝","アズリーダ"]
[null,"山口 明","Double Nine"]
[null,"山崎 幸恵","KDDI HTC1801"]
[null,"山崎 美奈子","ローズテニスガーデン"]
[null,"山崎 祐子","ローズテニスガーデン"]
[null,"山森 要","サークルK"]
[null,"山谷 慧吾","宇都宮大学"]
[null,"山田 英樹","アズリーダ"]
[null,"山田 清美","エキサイト"]
[null,"山田 祐輔","宇都宮大学"]
[null,"山藤 いち子","ユニティ（ＵＮＴ）"]
[null,"山本 哲也","グラスホッパー"]
[null,"山本 典子","ｱｲﾎﾞさくら"]
[null,"山本 雄太","RASH"]
[null,"山本 竜彦","リバティー"]
[null,"山本 礼","NAO"]
[null,"市川 泰世","RIZU"]
[null,"市川 敦子","みかも山Ｇ.Ｔ.Ｃ"]
[null,"市村 敬之","カフェ・オレ"]
[null,"市野沢 義行","みくりやTC"]
[null,"志賀 路朗","サルトビ"]
[null,"氏家 悦子","KTC"]
[null,"寺内 惠佑","フリー"]
[null,"持田 聡","フィナリスタ"]
[null,"鹿島 龍","ダブルベーグル"]
[null,"七海 貴紀","GTCC"]
[null,"篠原 大樹","キマグー"]
[null,"篠原 邦嘉","REDWOOD"]
[null,"篠江 秀徳","Double Nine"]
[null,"篠崎 克浩","ウィンディ"]
[null,"篠崎 優子","真岡STC"]
[null,"柴崎 邦夫","みくりやTC"]
[null,"柴田 宏道","ビッグツリー"]
[null,"芝沼 とも子","ミッキー"]
[null,"若園 毅","キヤノン"]
[null,"若本 三千代","シュガーバンビ"]
[null,"若林 克弥","ＨＩＴ"]
[null,"手塚 杏亮","※未登録"]
[null,"手塚 宏司","RASH"]
[null,"手塚 弘紀","ＨＩＴ"]
[null,"手塚 有莉","宇都宮テニスクラブ"]
[null,"手塚 和子","宇都宮テニスクラブ"]
[null,"酒井 恵子","※未登録"]
[null,"宗像 駿人","※未登録"]
[null,"秋山 勝美","River"]
[null,"秋山 裕一","River"]
[null,"舟橋 明生","カフェ・オレ"]
[null,"渋谷 一平","キマグー"]
[null,"重松 千恵子","足利エースアカデミー"]
[null,"出井 統","River"]
[null,"春山 陽子","足利エースアカデミー"]
[null,"勝澤 悠衣","CTC"]
[null,"升田 貴之","泉テニスクラブ（ITC)"]
[null,"小宮 孝佳","VECTOR"]
[null,"小栗 美佐江","ノグチテニススクール小山"]
[null,"小口 忠史","Double Nine"]
[null,"小高 直子","ラベンダー テニスクラブ"]
[null,"小室 みつ子","RIZU"]
[null,"小松原 博子","ＬＯＶＥ・ＡＬＬ（ラヴ・オール）"]
[null,"小松原 富茂次","サンデーテニスクラブ"]
[null,"小川 誠","FTS"]
[null,"小泉 修","NAO"]
[null,"小泉 茂","BOSS"]
[null,"小倉 広之","ダブルベーグル"]
[null,"小倉 治美","ラフィエスタ"]
[null,"小池 宏","Team HOWDY"]
[null,"小田 大仁","NSNL"]
[null,"小田切 弘","フリー"]
[null,"小島 繁幸","足利ローンテニスクラブ"]
[null,"小島 崚斗","コマツ硬式テニス部"]
[null,"小嶋 栄美","RIZU"]
[null,"小畑 紀之","フィナリスタ"]
[null,"小峯 ひとみ","KTC"]
[null,"小堀 栄行","ｱｲﾎﾞさくら"]
[null,"小堀 達也","P.J.D"]
[null,"小堀 智美","ウィッチーズテニスクラブ"]
[null,"小野 史裕","Team HOWDY"]
[null,"小野 裕司","フリー"]
[null,"小野崎 康裕","Team HOWDY"]
[null,"小野崎 航平","Team HOWDY"]
[null,"小野崎 仁紀","NAO"]
[null,"小野寺 潤","サトウGTC"]
[null,"小野瀬 帝生","ＨＩＴ"]
[null,"小林　 宰","宇都宮テニスクラブ"]
[null,"小林 かほり","足利ローンテニスクラブ"]
[null,"小林 絹代","ミッキー"]
[null,"小林 真由美","GTCC"]
[null,"小林 透","ウィンディ"]
[null,"小林 満恵","ローズテニスガーデン"]
[null,"小林 裕幸","県庁テニスクラブ"]
[null,"松崎 靖子","ビッグツリー"]
[null,"松村 智也","足利ローンテニスクラブ"]
[null,"松尾 一馬","ダブルベーグル"]
[null,"松本 開渡","グラスホッパー"]
[null,"松本 恭子","クロスポイント"]
[null,"松本 修治","RASH"]
[null,"松本 智子","ユニティ（ＵＮＴ）"]
[null,"松本 徹也","サルトビ"]
[null,"松葉 直樹","足利ローンテニスクラブ"]
[null,"沼田 久美子","コマツレディース"]
[null,"照井 隆晃","鹿沼市役所"]
[null,"上吉原 あい","USUI-PLYWOOD"]
[null,"上澤 晃生","CTC"]
[null,"城内 佳奈江","※未登録"]
[null,"植竹 徹","足利ローンテニスクラブ"]
[null,"織田 充","カフェ・オレ"]
[null,"新井 祐介","足利ローンテニスクラブ"]
[null,"新田 祐輔","ＨＯＮＤＡ Ｔ．Ｃ"]
[null,"森 貴洸","SUBARU"]
[null,"森下 裕貴","※未登録"]
[null,"森田 雅文","ビッグツリー"]
[null,"森田 晃夫","グラスホッパー"]
[null,"森田 晃夫","グラスホッパー"]
[null,"森田 博章","デクセリアルズ"]
[null,"森田 武比呂","アウリンTC"]
[null,"森脇 誠之","宇都宮テニスクラブ"]
[null,"深井 由高","ホンダエンジニアリング"]
[null,"深町 麻紀子","ミッキー"]
[null,"深澤 るみ子","ラフィエスタ"]
[null,"深澤 哲也","ラフィエスタ"]
[null,"真中 昭広","dream"]
[null,"真島 幸子","RISING"]
[null,"神山 旭","Double Nine"]
[null,"神山 厚子","RISING"]
[null,"神山 大地","FTS"]
[null,"諏合 伸","栄研化学テニス部B"]
[null,"諏訪 円香","ノグチテニススクール小山"]
[null,"須田 俊行","カフェ・オレ"]
[null,"杉山 正博","P.J.D"]
[null,"杉山 茉優","※未登録"]
[null,"杉田 裕子","MTC"]
[null,"菅原 夏紀","※未登録"]
[null,"菅野 葵惟","RIZU"]
[null,"菅野 喜久江","RIZU"]
[null,"菅野 久江","トマト LIS"]
[null,"菅野 尋文","Ｎｅｘｔ．"]
[null,"瀬戸 吉彦","花王硬式テニス部"]
[null,"瀬野 玉江","サタデー"]
[null,"成井 友紀乃","River"]
[null,"星野 美奈","ビッグツリー"]
[null,"星野 朋子","シュガーバンビ"]
[null,"星野 佑輔","Ｎｅｘｔ．"]
[null,"正田 友則","ビックサーズデイ"]
[null,"清水 順子","ローズテニスガーデン"]
[null,"清成 恵子","SMILE"]
[null,"生井 美智子","宇都宮サンテニスクラブ"]
[null,"生井 明日香","ノグチテニススクール小山"]
[null,"生沼 伊都子","南河内テニスクラブ"]
[null,"生沼 進","エキサイト"]
[null,"生沼 由美子","VOX"]
[null,"西岡 伸悟","D-Staff （ﾃﾞｨｰ・ｽﾀｯﾌ）"]
[null,"西山 翔","Ｎｅｘｔ．"]
[null,"西村 拓也","REDWOOD"]
[null,"西田 聖悟","宇都宮大学"]
[null,"西﨑 翔平","VECTOR"]
[null,"青山 正広","ＹＡＺＩＥＳ"]
[null,"青木 健登","宇都宮テニスクラブ"]
[null,"青木 孝一","フリー"]
[null,"青木 弘昌","サトウGTC"]
[null,"青木 香乃","RIZU"]
[null,"青木 拓馬","クロスポイント"]
[null,"斉藤 喜美子","ふぇぶれす"]
[null,"斉藤 諒","鹿沼市役所"]
[null,"石井 真史","キヤノン"]
[null,"石戸 力","Bloom"]
[null,"石戸谷 健進","Double Nine"]
[null,"石崎 智史","Ｎｅｘｔ．"]
[null,"石川 さよみ","足利みなみテニスクラブ"]
[null,"石川 祥","足利ローンテニスクラブ"]
[null,"石川 晋一郎","NAO"]
[null,"石川 正子","トマト LIS"]
[null,"石川 則江","NAO"]
[null,"石川 智恵子","フレンドテニスクラブ"]
[null,"石川 智洋","フリー"]
[null,"石川 茉奈","NAO"]
[null,"石塚 義成","ＹＡＺＩＥＳ"]
[null,"石塚 智也","NAO"]
[null,"石塚 美恵","ＨＩＴ"]
[null,"石田 裕也","NAO"]
[null,"石島 英明","ダブルベーグル"]
[null,"赤坂 小百合","足利みなみテニスクラブ"]
[null,"折原 正亮","G’MAX"]
[null,"川井 由佳理","バージュ"]
[null,"川越 亮","ＨＯＮＤＡ Ｔ．Ｃ"]
[null,"川上 瑛太","レモンティー"]
[null,"川上 裕","足利ローンテニスクラブ"]
[null,"川瀬 勇輝","NAO"]
[null,"川村 京介","宇都宮テニスクラブ"]
[null,"川津 萌衣","※未登録"]
[null,"川添 章","サトウGTC"]
[null,"泉田 敏雄","グラスホッパー"]
[null,"浅香 確人","Ｎｅｘｔ．"]
[null,"染谷 大志","※未登録"]
[null,"船津 美衣","Ｎｅｘｔ．"]
[null,"前田 忍","ダブルベーグル"]
[null,"前田 夢佳","株式会社　星野リゾート"]
[null,"前田 和也","ＴＦＣインドア"]
[null,"倉持 陽子","SUBARU"]
[null,"早乙女 達也","みくりやTC"]
[null,"相原 一樹","サトウGTC"]
[null,"相馬 将紀","ビッグツリー"]
[null,"増田 栄二","ビッグツリー"]
[null,"増田 紀子","クロスポイント"]
[null,"増渕 敏之","宇都宮サンテニスクラブ"]
[null,"村松 千朋","Bloom"]
[null,"村上 真章","Ｎｅｘｔ．"]
[null,"村上 智子","ビッグツリー"]
[null,"多部田 丈予","CTC"]
[null,"太田 英樹","クロスポイント"]
[null,"太田 航平","フリー"]
[null,"太田 剛夕","JKテニスガーデン"]
[null,"太田 真人","コマツ硬式テニス部"]
[null,"太田 麗華","ユニティ（ＵＮＴ）"]
[null,"太田 和則","GTCC"]
[null,"大浦 高明","(爆)TC"]
[null,"大河原 秀之","デクセリアルズ"]
[null,"大垣 波人","FTS"]
[null,"大貫 則子","サンライズ"]
[null,"大貫 大輔","県庁テニスクラブ"]
[null,"大久保 真人","サトウGTC"]
[null,"大橋 亜由美","River"]
[null,"大橋 扶結","※未登録"]
[null,"大橋 良矩","River"]
[null,"大高 徹","キマグー"]
[null,"大山 礼子","UIテニスクラブ"]
[null,"大森 拓馬","GTCC"]
[null,"大川 和洋","ふぇぶれす"]
[null,"大谷 康子","足利みなみテニスクラブ"]
[null,"大谷 三枝","大田原レオテニスクラブ"]
[null,"大塚 てる子","真岡STC"]
[null,"大塚 綾子","RIZU"]
[null,"大塚 元暉","OTSC"]
[null,"大塚 真穂","Gon Be"]
[null,"大塚 未宇","Ｎｅｘｔ．"]
[null,"大纏 三奈","宇都宮テニスクラブ"]
[null,"大纏 仁","ＨＯＮＤＡ Ｔ．Ｃ"]
[null,"大島 義宏","ウィンディ"]
[null,"大島 文子","宇都宮サンテニスクラブ"]
[null,"大嶋 淳一","エキサイト"]
[null,"大内 敏","カフェ・オレ"]
[null,"大林 紀章","※未登録"]
[null,"大和 秀行","足利ローンテニスクラブ"]
[null,"鷹家 優一","キヤノン"]
[null,"滝川 君代","クールライフスポーツ"]
[null,"滝川 達也","※未登録"]
[null,"滝澤 学","キマグー"]
[null,"沢井 研二","宇都宮サンテニスクラブ"]
[null,"棚橋 美由紀","結城サンデーズ"]
[null,"谷崎 悠真","キマグー"]
[null,"谷沢 淳","REDWOOD"]
[null,"谷田貝 幹也","フィナリスタ"]
[null,"谷野 順一","ミレニアム"]
[null,"丹 昌弘","RIZU"]
[null,"丹 敏亮","鹿沼市役所"]
[null,"炭谷 侑寛","宇都宮大学"]
[null,"地土 百恵","ユニティ（ＵＮＴ）"]
[null,"竹内 椋汰","サトウGTC"]
[null,"竹澤 佳満","鹿沼市役所"]
[null,"竹澤 裕都","Ｎｅｘｔ．"]
[null,"中井 裕美子","ユニティ（ＵＮＴ）"]
[null,"中山 七海","Ｎｅｘｔ．"]
[null,"中山 潤","コマツ硬式テニス部"]
[null,"中山 晴美","ラフィエスタ"]
[null,"中川 尚子","宇都宮サンテニスクラブ"]
[null,"中川 誠仁","ＴＦＣインドア"]
[null,"中村 みやび","RISING"]
[null,"中村 公星","ロイヤルテニスクラブ"]
[null,"中村 雄介","※未登録"]
[null,"中塚 萌香","※未登録"]
[null,"中島 千尋","※未登録"]
[null,"中島 洋一","ジャルダン"]
[null,"中野 吏紗","JAしもつけ"]
[null,"仲山 剛央","ＹＡＺＩＥＳ"]
[null,"仲澤 聖人","ウィンディ"]
[null,"猪瀬 七海","宇都宮大学"]
[null,"朝倉 規雄","ＳＢＴＣ"]
[null,"町井 浩美","ウィンディ"]
[null,"町井 真理子","ビッグツリー"]
[null,"長岡 大介","鹿沼市役所"]
[null,"長山 亜紀子","ユニティ（ＵＮＴ）"]
[null,"長島 成司","グラスホッパー"]
[null,"長浜 拓","Team HOWDY"]
[null,"直井 武雄","（株）パイオラックス"]
[null,"陳之内 康子","FAIR WIND"]
[null,"津浦 隆之","フィナリスタ"]
[null,"塚原 ひとみ","VOX"]
[null,"坪井 美佳","ユニティ（ＵＮＴ）"]
[null,"坪井 友美","足利ローンテニスクラブ"]
[null,"天海 遥","宇都宮大学"]
[null,"田口 美由紀","シュガーバンビ"]
[null,"田村 憲一","足利ローンテニスクラブ"]
[null,"田代 泉","GTCC"]
[null,"田中 義人","ＳＢＴＣ"]
[null,"田島 基豪","アキレス"]
[null,"田島 孝悟","佐野サンライズ"]
[null,"田那部 久美子","コマツレディース"]
[null,"田内 宏道","ユニティ（ＵＮＴ）"]
[null,"田部井 究也","足利ローンテニスクラブ"]
[null,"田部谷 正和","G’MAX"]
[null,"斗光 操子","ﾁｰﾑ2001"]
[null,"渡部 英明","Bloom"]
[null,"渡辺 啓太","Ｎｅｘｔ．"]
[null,"渡辺 充教","グラスホッパー"]
[null,"渡辺 慎吾","自治医科大学教職員テニスクラブ"]
[null,"渡辺 友弘","富士通"]
[null,"渡邊 千鶴","RIZU"]
[null,"渡邊 隆典","RIZU"]
[null,"土屋 晃太","ビッグツリー"]
[null,"島貫 舞","アップルテニスチーム"]
[null,"嶋立 郡","ウィンディ"]
[null,"湯橋 栄枝","※未登録"]
[null,"湯原 正籍","宇都宮サンテニスクラブ"]
[null,"湯川 碧樹","宇都宮大学"]
[null,"藤 智之","佐野市役所"]
[null,"藤原 正貴","自治医科大学教職員テニスクラブ"]
[null,"藤原 篤","グラスホッパー"]
[null,"藤原 弥","チームU&T"]
[null,"藤江 喜恵子","RISING"]
[null,"藤倉 俊一","ＬＯＶＥ・ＡＬＬ（ラヴ・オール）"]
[null,"藤倉 諒","VOX"]
[null,"藤田 空斗","ダブルベーグル"]
[null,"藤田 元","みはらレディース"]
[null,"藤田 弘幸","宇都宮テニスクラブ"]
[null,"藤田 直美","amigoT.C"]
[null,"藤澤 佳代子","ラフィエスタ"]
[null,"藤澤 義仁","ダブルベーグル"]
[null,"藤澤 柾輝","ＨＩＴ"]
[null,"陶山 恭平","宇都宮大学"]
[null,"那須 友紀","リバティー"]
[null,"内田 信彦","サトウGTC"]
[null,"内田 展子","県庁テニスクラブ"]
[null,"日浦 竜馬","宇都宮テニスクラブ"]
[null,"日下田 雄","ＫＡＴＡ"]
[null,"日吉 智也","宇都宮大学"]
[null,"日向野 貴","TEAM SWY"]
[null,"日向野 誠基","Ｎｅｘｔ．"]
[null,"日比野 真","チームU&T"]
[null,"韮塚 洋子","River"]
[null,"梅山 秀紀","JAしもつけ"]
[null,"梅津 華","amigoT.C"]
[null,"梅津 貴史","サトウGTC"]
[null,"梅津 京","CTC"]
[null,"萩原 美保子","宇都宮サンテニスクラブ"]
[null,"萩原 稔","ウィンディ"]
[null,"萩原 優幸","ＨＯＮＤＡ Ｔ．Ｃ"]
[null,"柏崎 佳子","フリー"]
[null,"柏崎 秀明","River"]
[null,"白石 真里名","宇都宮テニスクラブ"]
[null,"粕尾 栄之","G’MAX"]
[null,"薄井 啓輔","LEX"]
[null,"薄木 直哉","ダブルベーグル"]
[null,"迫田 宗達","P.J.D"]
[null,"八木澤 和久","GTCC"]
[null,"半田 守可","RIZU"]
[null,"板東 裕美子","ローズテニスガーデン"]
[null,"飯塚 朋美","宇都宮サンテニスクラブ"]
[null,"飯島 正子","コマツレディース"]
[null,"飯野 昭子","リバティー"]
[null,"肥後 正弓","ホンダエンジニアリング"]
[null,"樋口 潤","D-Staff （ﾃﾞｨｰ・ｽﾀｯﾌ）"]
[null,"柊木 卓子","ＬＯＶＥ・ＡＬＬ（ラヴ・オール）"]
[null,"膝附 宥太","BEST"]
[null,"菱沼 礼子","FTS"]
[null,"富井 浩枝","リバティー"]
[null,"富川 佳代子","FTC"]
[null,"附田 昌大","キヤノン"]
[null,"服部 宏史","カフェ・オレ"]
[null,"服部 淳子","RISING"]
[null,"福井 寿美子","みかも山Ｇ.Ｔ.Ｃ"]
[null,"福永 徳仁","レモンティー"]
[null,"福岡 幸江","足利ローンテニスクラブ"]
[null,"福士 拓海","フリー"]
[null,"福田 健一","足利ローンテニスクラブ"]
[null,"福田 澄子","FTS"]
[null,"福田 雪矢","ダブルベーグル"]
[null,"福田 拓矢","※未登録"]
[null,"福田 裕之","Double Nine"]
[null,"福田 隆一","FTS"]
[null,"福田 諒平","ＨＩＴ"]
[null,"福島 崇史","サトウGTC"]
[null,"平尾 竹識","コマツ硬式テニス部"]
[null,"平野 愛美","River"]
[null,"平野 晴大","Bloom"]
[null,"平野 有芽","LEX"]
[null,"平野 里佳","VOX"]
[null,"柄澤 伸治","ＨＯＮＤＡ Ｔ．Ｃ"]
[null,"米山 裕弥","キマグー"]
[null,"片山 智子","SUBARU"]
[null,"片野 優子","ランチBOX"]
[null,"保利 ちひろ","宇都宮サンテニスクラブ"]
[null,"峰島 陸","サトウGTC"]
[null,"豊田 浩世","ダブルベーグル"]
[null,"豊田 仁子","ＴＡテニス"]
[null,"北崎 賢","REDWOOD"]
[null,"北林 優","ジャルダン"]
[null,"北條 妙恵","ER"]
[null,"北澤 良","レモンティー"]
[null,"牧山 真之","富士通"]
[null,"牧島 萌花","LEX"]
[null,"牧島 萌花","Gon Be"]
[null,"牧野 圭一郎","VOX"]
[null,"堀 菜月","足利ローンテニスクラブ"]
[null,"堀越 基好","みくりやTC"]
[null,"堀越 和子","HTC"]
[null,"堀切 久寛","Ｎｅｘｔ．"]
[null,"木滑 啓佑","カフェ・オレ"]
[null,"木村 寛","ＨＯＮＤＡ Ｔ．Ｃ"]
[null,"木村 昌幸","グラスホッパー"]
[null,"木村 千晴","アップルテニスチーム"]
[null,"木村 博昭","ダブルベーグル"]
[null,"木村 和司","エンデバーテニスクラブ"]
[null,"木本 和寿","VOX"]
[null,"木本 凉介","VOX"]
[null,"野口 朔太郎","VOX"]
[null,"野口 将矢","River"]
[null,"野口 祐二","南河内テニスクラブ"]
[null,"野口 洋子","ユニティ（ＵＮＴ）"]
[null,"野中　 かな江","ユニティ（ＵＮＴ）"]
[null,"野中 瑞姫","Ｎｅｘｔ．"]
[null,"野澤 英恵","コマツレディース"]
[null,"矢口 聡","栃木銀行"]
[null,"矢治 あつ子","FAIR WIND"]
[null,"矢田部 暁良志","ウィンディ"]
[null,"矢田部 直哉","ウィンディ"]
[null,"矢田部 隼哉","※未登録"]
[null,"矢木田 義人","キヤノン"]
[null,"柳 敏幸","足利ローンテニスクラブ"]
[null,"柳久保 友貴","※未登録"]
[null,"柳田 一真","フィナリスタ"]
[null,"柳田 浩幸","KGTC"]
[null,"唯岡 千紘","コマツレディース"]
[null,"有田 光佑","花王硬式テニス部"]
[null,"柚木 武","Yuzu TS"]
[null,"落合 真由美","UIテニスクラブ"]
[null,"落合 聡","宇都宮サンテニスクラブ"]
[null,"落合 惇","NAO"]
[null,"落合 亮太","昭和電工マスターズ"]
[null,"立溝 令登","※未登録"]
[null,"劉 生浩","※未登録"]
[null,"両角 賢一郎","ＨＯＮＤＡ Ｔ．Ｃ"]
[null,"林 修身","パワフルテニスクラブ"]
[null,"鈴木 貴子","ＬＯＶＥ・ＡＬＬ（ラヴ・オール）"]
[null,"鈴木 宏征","カフェ・オレ"]
[null,"鈴木 剛俊","River"]
[null,"鈴木 克彰","G’MAX"]
[null,"鈴木 嗣人","デクセリアルズ"]
[null,"鈴木 淑史","VECTOR"]
[null,"鈴木 俊寛","泉テニスクラブ（ITC)"]
[null,"鈴木 俊佑","Double Nine"]
[null,"鈴木 淳","UIテニスクラブ"]
[null,"鈴木 渉","泉テニスクラブ（ITC)"]
[null,"鈴木 展明","足利ローンテニスクラブ"]
[null,"鈴木 芳人","ウィンディ"]
[null,"鈴木 満里子","RIZU"]
[null,"鈴木 和彦","ＬＯＶＥ・ＡＬＬ（ラヴ・オール）"]
[null,"和久 有里","Team HOWDY"]
[null,"哘崎 恵子","RISING"]
[null,"廣田 晴紀","dream"]
[null,"廣田 晴久","※未登録"]
[null,"櫻井 智基","※未登録"]
[null,"齋藤 貴紀","ビッグツリー"]
[null,"齋藤 聡","ＬＯＶＥ・ＡＬＬ（ラヴ・オール）"]
[null,"齋藤 敦子","amigoT.C"]
[null,"齋藤 裕茂","VECTOR"]
[null,"齋藤 頌太","※未登録"]
[null,"纓坂 千恵実","RISING"]
[null,"髙田 壱斗","帝京大学"]
[null,"髙田 和男","ふぇぶれす"]
[null,"髙野 将義","VECTOR"]